Workbook

Sheet vers
A3: v7 | B3: made after call w Alan 10/5 purpose is to test a nonparametric model and implement some kind of overfitting testing
A4: v8 | B4: dropped extra name of Quadratic model, this one is just the quadratic model identified circular references and cleaned it up

Sheet Readme
L1: Other papers and sources
L3: Beyond the Correlation Matrix: Guy Carpenter
L4: https://www.casact.org/education/reinsure/2011/handouts/C2-Mango.pdf
L5: Ppt slides on pros/cons of correlation matrix usage in capital models.
L6: Don Mango - no longer with GC, not sure who else there would have experience in this space.
L8: Moving Beyond History: A loss driver approach...
L9: https://www.casact.org/education/reinsure/2014/handouts/Paper_3349_handout_2145_0.pdf
L10: Eric Huang, Swiss Re
L11: Focuses on casualty risks, casuatly loss drivers. Like Praedicat.
L13: Common Poisson Shock Models
L14: https://www.casact.org/library/astin/vol33no2/209.pdf
L15: Filip Lindskog
L16: Very mathy.
L17: Honestly its just too complicated for me to read through. I get the feeling that
L18: it doesn't really work on the same problem I have
L19: it would be difficult to parameterize
L20: a bit too academic
L22: Common Shock Model for Correlated Insurance Losses
L23: https://www.casact.org/pubs/forum/06wforum/06w235.pdf
L24: Glenn Meyers
L25: Idea is to shock the parameters of the loss generating modules in the model.
L26: !! Page 235 (5) of this document appears to have the derivation of a value we were looking for here for a very long time. Basically relationship of SD of beta multiplier and correlation of the two variables... but this one focuses more on the two correlated variables.
L28: Advancements in Common Shock Modeling
L29: http://www.casact.org/education/spring/2016/presentations/P-2-Ferrara.pdf
L30: Ming Li and Paul Ferrara
L31: Main problems with application
L32: - Increases volatility of existing line models - Unpredictably induces correlation
L33: Those were my old issues. p16 and p21 seem to get right to the heart of what I needed in the old methodology where we were trying to get at the underlying idiosyncratic risk. They have derived formulas for it here. I'm still not sure how they have preserved the original distribution though. Seems they are still requiring certain forms which may or may not preserve the original.
L34: Needs to be researched and determine whether their approach solves the problem adequately. Still doesn't address parameterization of a risk driver which is the issue that our work with the PAECM group is supposed to be getting at.

Sheet Calculations
N3: Historical Data | Q3: Table 1 | AU3: S&P 500 Prediction
B4: Text Table 1 | AU4: ='Economic Data'!AI5 -> 1845.165601
B6: AY | C6: -1 | D6: =-1+C6 -> -2 | E6: -3 | N6: AY | O6: -1 | P6: =-1+O6 -> -2 | Q6: =-1+P6 -> -3 | R6: -4 | S6: -5 | T6: -6 | AT6: Simulated S&P Index and Error | AZ6: Final Values for Beta Distribution | BD6: Revised yerr distribution | BI6: Fitting Beta Parameters | BO6: Elements of <LRidio>
C7: Loss Ratio (LR) | O7: S&P Index | Q7: Loss Ratio (LR) | S7: Observed Error | AT7: =-1 -> -1 | AU7: =-1+AT7 -> -2 | AV7: =-1+AU7 -> -3 | AW7: -4 | AX7: -4 | AZ7: -5 | BA7: =-1+AZ7 -> -6 | BB7: -7 | BD7: -8 | BE7: =-1+BD7 -> -9 | BF7: -10 | BI7: =-1+BF7 -> -11 | BK7: =-1+BI7 -> -12 | BL7: =-1+BK7 -> -13 | BM7: =-1+BL7 -> -14 | BO7: -15 | BP7: =-1+BO7 -> -16
C8: Planned | D8: Observed | E8: LRerr Obs | O8: Predicted | P8: Observed | Q8: Planned | R8: Observed | AE8: Polynomial regression | AF8: Coeff | AH8: LRerr Obs | AI8: LRerr Pred | AJ8: QQ | AT8: Sim | AU8: S&P 500 Simulation | AW8: =Models!#REF! ->  | AZ8: Beta parameters | BB8: Solver constraints | BD8: U | BI8: Selected CDF levels | BJ8: LRerr Obs | BM8: error | BO8: <LRpred> | BP8: <LRidio> | CC8: Beta
B9: 1990 | C9: 60.3014935 | D9: 62.3959726 | E9: =D9/C9 -> 1.034733453 | N9: 1990 | O9: =INDEX('Economic Data'!$AI$2:$AI$29,MATCH(N9,'Economic Data'!$AA$2:$AA$29,0)) -> 359.66 | P9: 328.75 | Q9: =C9 -> 60.3014935 | R9: =D9 -> 62.3959726 | S9: =P9/O9 -> 0.9140577212 | T9: =R9/Q9 -> 1.034733453 | AE9: b2 | AF9: =TRANSPOSE(LINEST(T9:T32,S9:S32^{1,2})) -> 1.096721603 | AH9: =T9 -> 1.034733453 | AI9: =$AF$11+$AF$10*S9+$AF$9*S9^2 -> 1.035660887 | AJ9: =_xlfn.PERCENTRANK.INC(AH$9:AH$32,AH9) -> 0.521 | AK9: =_xlfn.PERCENTRANK.INC(AI$9:AI$32,AI9) -> 0.826 | AT9: 1 | AU9: 1291.559683 | AV9: =AU9/$AU$4 -> 0.6999695215 | AX9: =$AF$11+$AF$10*AV9+$AF$9*AV9^2 -> 1.195386757 | AZ9: minY | BA9: 0.196191876 | BB9: 0.05 | BD9: 0.1276005746 | BE9: =_xlfn.BETA.INV(BD9,$BA$11,$BA$12,$BA$9,$BA$10) -> 0.7234446143 | BF9: =AX9*BE9 -> 0.8647961112 | BG9: =_xlfn.LOGNORM.INV(BD9,$H$15,$H$14) -> 0.7211098436 | BI9: 0.001 | BJ9: na | BK9: =_xlfn.LOGNORM.INV(BI9,$H$15,$H$14) -> 0.435670912 | BL9: =_xlfn.PERCENTILE.INC($BF$9:$BF$1008,BI9) -> 0.4343508037 | BM9: =ABS(BL9-BK9)^2 -> 1.742685996e-06 | BO9: =_xlfn.PERCENTILE.INC($AX$9:$AX$1008,$BI9) -> 0.9760728907 | BP9: =_xlfn.PERCENTILE.INC($BE$9:$BE$1008,$BI9) -> 0.4326977111 | BS9: St. Dev. | CC9: xU | CD9: x | CE9: beta(x) | CF9: ln(x)
B10: 1991 | C10: 69.9983786 | D10: 59.1017373 | E10: 0.84433009 | N10: 1991 | O10: =INDEX('Economic Data'!$AI$2:$AI$29,MATCH(N10,'Economic Data'!$AA$2:$AA$29,0)) -> 364.085288 | P10: 388.51 | Q10: =C10 -> 69.9983786 | R10: 59.1017373 | S10: =P10/O10 -> 1.067085139 | T10: =R10/Q10 -> 0.84433009 | AE10: b1 | AF10: -2.51621362 | AH10: =T10 -> 0.84433009 | AI10: =$AF$11+$AF$10*S10+$AF$9*S10^2 -> 0.9831033992 | AJ10: =_xlfn.PERCENTRANK.INC(AH$9:AH$32,AH10) -> 0.347 | AK10: 0.434 | AT10: 2 | AU10: 1893.015234 | AV10: =AU10/$AU$4 -> 1.025932433 | AX10: =$AF$11+$AF$10*AV10+$AF$9*AV10^2 -> 0.9921881073 | AZ10: maxY | BA10: 9.910825263 | BB10: 10 | BD10: 0.213552389 | BE10: 0.7931367944 | BF10: 0.7869408949 | BG10: 0.7879895948 | BI10: 0.01 | BJ10: na | BK10: 0.5306163229 | BL10: 0.5376460411 | BM10: =ABS(BL10-BK10)^2 -> 4.941693862e-05 | BO10: 0.9760866095 | BP10: 0.5293286293 | BR10: <Eco> | BS10: =_xlfn.STDEV.P(AV9:AV1008) -> 0.1454677774 | CC10: 0 | CD10: =CC10*(maxY-minY)+minY -> 0.196191876 | CE10: =_xlfn.BETA.DIST(CD10,alpha,beta,FALSE,minY,maxY) -> 0 | CF10: =_xlfn.LOGNORM.DIST(CD10,$H$15,$H$14,FALSE) -> 3.975815122e-08
B11: 1992 | C11: 71.6597981 | D11: 65.7348387 | E11: 0.9173182236 | N11: 1992 | O11: =INDEX('Economic Data'!$AI$2:$AI$29,MATCH(N11,'Economic Data'!$AA$2:$AA$29,0)) -> 417.219252 | P11: 435.64 | Q11: 71.6597981 | R11: 65.7348387 | S11: 1.044151242 | T11: 0.9173182236 | AE11: b0 | AF11: 2.419312811 | AH11: 0.9173182236 | AI11: 0.9877079541 | AJ11: 0.391 | AK11: 0.565 | AT11: 3 | AU11: 1638.841615 | AV11: 0.8881813177 | AX11: 1.049625325 | AZ11: alpha | BA11: 9.263062586 | BB11: 0.1 | BD11: 0.7165640294 | BE11: 1.126717863 | BF11: 1.182631603 | BG11: 1.121306122 | BI11: 0.05 | BJ11: =_xlfn.PERCENTILE.INC($T$9:$T$32,BI11) -> 0.7201125009 | BK11: 0.632656131 | BL11: 0.6405954779 | BM11: 6.303322963e-05 | BO11: 0.976391711 | BP11: 0.6320781618 | BR11: <LRpred> | BS11: =_xlfn.STDEV.P(AX9:AX1008) -> 0.06534412774 | CC11: 0.05 | CD11: 0.6819235454 | CE11: 0.8615548935 | CF11: =_xlfn.LOGNORM.DIST(CD11,$H$15,$H$14,FALSE) -> 0.9059982399
B12: 1993 | C12: 73.2916477 | D12: 54.5155211 | E12: 0.7438162848 | G12: mean | H12: 1 | N12: 1993 | O12: =INDEX('Economic Data'!$AI$2:$AI$29,MATCH(N12,'Economic Data'!$AA$2:$AA$29,0)) -> 464.203883 | P12: 465.95 | Q12: 73.2916477 | R12: 54.5155211 | S12: 1.00376153 | T12: 0.7438162848 | AH12: 0.7438162848 | AI12: 0.9986222009 | AJ12: 0.086 | AK12: 0.652 | AT12: 4 | AU12: 2041.131392 | AV12: 1.106204988 | AX12: 0.9779114367 | AZ12: beta | BA12: 102.6881036 | BB12: 0.1 | BD12: 0.6149356136 | BE12: 1.050860396 | BF12: 1.0276484 | BG12: 1.043009611 | BI12: 0.1 | BJ12: 0.7495036822 | BK12: 0.6948473566 | BL12: 0.7111172708 | BM12: 0.0002647101102 | BO12: 0.9773044826 | BP12: 0.696815011 | CC12: 0.1 | CD12: 1.167655215 | CE12: 1.083838418 | CF12: 1.014451261
B13: 1994 | C13: 76.4072782 | D13: 60.1274252 | E13: 0.7869332165 | G13: sd | H13: =_xlfn.STDEV.S(T9:T32) -> 0.2624496314 | N13: 1994 | O13: =INDEX('Economic Data'!$AI$2:$AI$29,MATCH(N13,'Economic Data'!$AA$2:$AA$29,0)) -> 495.900639 | P13: 455.19 | Q13: 76.4072782 | R13: 60.1274252 | S13: 0.9179056533 | T13: 0.7869332165 | AH13: 0.7869332165 | AI13: 1.033709755 | AJ13: 0.26 | AK13: 0.782 | AT13: 5 | AU13: 1652.16132 | AV13: 0.8954000223 | AX13: 1.045581974 | AZ13: E[Impact] | BA13: =(BA9*BA12+BA10*BA11)/(BA11+BA12) -> 1.000000002 | BB13: 1 | BD13: 0.07370716316 | BE13: 0.6651779281 | BF13: 0.6954980508 | BG13: 0.6655049617 | BI13: 0.2 | BJ13: =_xlfn.PERCENTILE.INC($T$9:$T$32,BI13) -> 0.7783965242 | BK13: 0.7783952624 | BL13: 0.7970143078 | BM13: 0.0003466688504 | BO13: 0.9807922399 | BP13: 0.7834878319 | CC13: 0.15 | CD13: 1.653386884 | CE13: 0.09241755669 | CF13: 0.1080787371
B14: 1995 | C14: 76.0409289 | D14: 58.4966316 | E14: 0.7692782354 | G14: sigma | H14: =SQRT(LN(1+(H13/H12)^2)) -> 0.2580914424 | N14: 1995 | O14: =INDEX('Economic Data'!$AI$2:$AI$29,MATCH(N14,'Economic Data'!$AA$2:$AA$29,0)) -> 502.08192 | P14: 614.57 | Q14: 76.0409289 | R14: 58.4966316 | S14: 1.22404328 | T14: 0.7692782354 | AH14: 0.7692782354 | AI14: 0.9825566216 | AJ14: 0.173 | AK14: 0.391 | AT14: 6 | AU14: 1934.3993 | AV14: 1.048360808 | AX14: 0.9867763331 | AZ14: SD[Impact] | BA14: =SQRT((BA11*BA12*(BA10-BA9)^2)/((BA11+BA12)^2*(1+BA11+BA12))) -> 0.2518197568 | BD14: 0.7246016013 | BE14: 1.133359635 | BF14: 1.118372464 | BG14: 1.128244776 | BI14: 0.3 | BJ14: =_xlfn.PERCENTILE.INC($T$9:$T$32,BI14) -> 0.8336318926 | BK14: 0.8448054785 | BL14: 0.8687745197 | BM14: 0.0005745149345 | BO14: 0.9861413218 | BP14: 0.8518384078 | CC14: 0.2 | CD14: 2.139118553 | CE14: 0.002093106058 | CF14: 0.006386831936
B15: 1996 | C15: 73.9354578 | D15: 58.0005466 | E15: 0.7844753833 | G15: mu | H15: =LN(H12/SQRT(1+(H13/H12)^2)) -> -0.03330559632 | N15: 1996 | O15: =INDEX('Economic Data'!$AI$2:$AI$29,MATCH(N15,'Economic Data'!$AA$2:$AA$29,0)) -> 660.909048 | P15: 743.25 | Q15: 73.9354578 | R15: 58.0005466 | S15: 1.124587418 | T15: 0.7844753833 | AH15: 0.7844753833 | AI15: 0.9766310013 | AJ15: 0.217 | AK15: 0.13 | AT15: 7 | AU15: 2022.45436 | AV15: 1.096082844 | AX15: 0.9789329329 | BD15: 0.715100555 | BE15: 1.125521324 | BF15: 1.101809891 | BG15: 1.120057567 | BI15: 0.4 | BJ15: 0.9228850823 | BK15: 0.9060214338 | BL15: 0.930120402 | BM15: 0.0005807602698 | BO15: 0.9932089753 | BP15: 0.9141647844 | CC15: 0.25 | CD15: 2.624850223 | CE15: 1.868000503e-05 | CF15: 0.0003318894467
B16: 1997 | C16: 72.0108853 | D16: 68.0612695 | E16: 0.9451525171 | N16: 1997 | O16: =INDEX('Economic Data'!$AI$2:$AI$29,MATCH(N16,'Economic Data'!$AA$2:$AA$29,0)) -> 799.924065 | P16: 962.37 | Q16: 72.0108853 | R16: 68.0612695 | S16: 1.203076695 | T16: 0.9451525171 | AH16: 0.9451525171 | AI16: 0.9795026018 | AJ16: 0.434 | AK16: 0.217 | AT16: 8 | AU16: 1812.505653 | AV16: 0.9822997197 | AX16: 1.005877524 | BD16: 0.3370913308 | BE16: 0.8753440961 | BF16: 0.8804889516 | BG16: 0.8677852641 | BI16: 0.5 | BJ16: 1.011871916 | BK16: 0.9672429285 | BL16: 0.9967548023 | BM16: 0.0008709506929 | BO16: 1.002182431 | BP16: 0.9757885246 | CC16: 0.3 | CD16: 3.110581892 | CE16: 7.564029576e-08 | CF16: 1.770733255e-05
B17: 1998 | C17: 66.7127335 | D17: 86.8392236 | E17: 1.301688884 | N17: 1998 | O17: =INDEX('Economic Data'!$AI$2:$AI$29,MATCH(N17,'Economic Data'!$AA$2:$AA$29,0)) -> 1031.750637 | P17: 1190.05 | Q17: 66.7127335 | R17: 86.8392236 | S17: 1.153427929 | T17: 1.301688884 | AH17: 1.301688884 | AI17: 0.9761157662 | AJ17: 0.826 | AK17: 0 | AT17: 9 | AU17: 1819.42462 | AV17: 0.9860495009 | AX17: 1.004537042 | BD17: 0.5453783963 | BE17: 1.004647859 | BF17: 1.009205989 | BG17: 0.9961226021 | BI17: 0.6 | BJ17: 1.04233275 | BK17: 1.03260127 | BL17: 1.056860006 | BM17: 0.0005884862811 | BO17: 1.01345614 | BP17: 1.040268817 | CC17: 0.35 | CD17: 3.596313562 | CE17: 1.442578033e-10 | CF17: 1.026681891e-06
B18: 1999 | C18: 68.4155904 | D18: 108.9434991 | E18: 1.592378264 | N18: 1999 | O18: =INDEX('Economic Data'!$AI$2:$AI$29,MATCH(N18,'Economic Data'!$AA$2:$AA$29,0)) -> 1260.893125 | P18: 1428.68 | Q18: 68.4155904 | R18: 108.9434991 | S18: 1.133069863 | T18: 1.592378264 | AH18: 1.592378264 | AI18: 0.9762900739 | AJ18: 1 | AK18: 0.043 | AT18: 10 | AU18: 1946.309687 | AV18: 1.054815723 | AX18: 0.9854232894 | BD18: 0.6134189146 | BE18: 1.049815309 | BF18: 1.034512455 | BG18: 1.041942721 | BI18: 0.7 | BJ18: 1.07104622 | BK18: 1.107425208 | BL18: 1.137138536 | BM18: 0.0008828818667 | BO18: 1.028609064 | BP18: 1.113217712 | CC18: 0.4 | CD18: 4.082045231 | CE18: 1.26893022e-13 | CF18: 6.597656364e-08
B19: 2000 | C19: 71.1433809 | D19: 110.2056596 | E19: 1.549064132 | N19: 2000 | O19: =INDEX('Economic Data'!$AI$2:$AI$29,MATCH(N19,'Economic Data'!$AA$2:$AA$29,0)) -> 1531.803126 | P19: 1330.93 | Q19: 71.1433809 | R19: 110.2056596 | S19: 0.8688649197 | T19: 1.549064132 | AH19: 1.549064132 | AI19: 1.061006992 | AJ19: 0.956 | AK19: 0.869 | AT19: 11 | AU19: 2249.999263 | AV19: 1.219402346 | AX19: 0.9817975228 | BD19: 0.6729755403 | BE19: 1.092565863 | BF19: 1.072678457 | BG19: 1.08584302 | BI19: 0.8 | BJ19: 1.197653621 | BK19: 1.201907216 | BL19: 1.227877883 | BM19: 0.0006744755179 | BO19: 1.050628492 | BP19: 1.202920825 | CC19: 0.45 | CD19: 4.5677769 | CE19: 4.82466475e-17 | CF19: 4.719371548e-09
B20: 2001 | C20: 74.1767312 | D20: 105.5806582 | E20: 1.423366283 | N20: 2001 | O20: =INDEX('Economic Data'!$AI$2:$AI$29,MATCH(N20,'Economic Data'!$AA$2:$AA$29,0)) -> 1418.87104 | P20: 1144.93 | Q20: 74.1767312 | R20: 105.5806582 | S20: 0.8069302761 | T20: 1.423366283 | AH20: 1.423366283 | AI20: 1.103019294 | AJ20: 0.913 | AK20: 0.913 | AT20: 12 | AU20: 1786.442793 | AV20: 0.9681747765 | AX20: 1.011203843 | BD20: 0.6712195206 | BE20: 1.091247824 | BF20: 1.103473994 | BG20: 1.084481492 | BI20: 0.9 | BJ20: 1.404147505 | BK20: 1.346423605 | BL20: 1.37291731 | BM20: 0.0007019164059 | BO20: 1.09117524 | BP20: 1.33446872 | CC20: 0.5 | CD20: 5.05350857 | CE20: 7.1190246e-21 | CF20: 3.749033639e-10
B21: 2002 | C21: 68.9069994 | D21: 93.6655384 | E21: 1.359303688 | N21: 2002 | O21: =INDEX('Economic Data'!$AI$2:$AI$29,MATCH(N21,'Economic Data'!$AA$2:$AA$29,0)) -> 1185.856539 | P21: 899.18 | Q21: 68.9069994 | R21: 93.6655384 | S21: 0.7582536086 | T21: 1.359303688 | AH21: 1.359303688 | AI21: 1.141943232 | AJ21: 0.869 | AK21: 0.956 | AT21: 13 | AU21: 1987.366736 | AV21: 1.077066869 | AX21: 0.9814596499 | BD21: 0.09983582169 | BE21: 0.6957708167 | BF21: 0.6828709822 | BG21: 0.6946795094 | BI21: 0.95 | BJ21: 1.530209455 | BK21: 1.478779446 | BL21: 1.498647597 | BM21: 0.0003947434135 | BO21: 1.137391118 | BP21: 1.451358979 | CC21: 0.55 | CD21: 5.539240239 | CE21: 3.47903183e-25 | CF21: 3.290718026e-11
B22: 2003 | C22: 66.0905454 | D22: 65.3642354 | E22: 0.9890103797 | N22: 2003 | O22: =INDEX('Economic Data'!$AI$2:$AI$29,MATCH(N22,'Economic Data'!$AA$2:$AA$29,0)) -> 927.3313 | P22: 1080.64 | Q22: 66.0905454 | R22: 65.3642354 | S22: 1.165322469 | T22: 0.9890103797 | AH22: 0.9890103797 | AI22: 0.9764346592 | AJ22: 0.478 | AK22: 0.086 | AT22: 14 | AU22: 1699.25195 | AV22: 0.9209211083 | AX22: 1.032203437 | BD22: 0.1799404684 | BE22: 0.7678686909 | BF22: 0.7925967023 | BG22: 0.763675703 | BI22: 0.99 | BJ22: na | BK22: 1.763155113 | BL22: 1.742442284 | BM22: 0.0004290213018 | BO22: 1.264336756 | BP22: 1.674110679 | CC22: 0.6 | CD22: 6.024971908 | CE22: 4.4885353e-30 | CF22: 3.172156445e-12
B23: 2004 | C23: 65.9162507 | D23: 45.3881092 | E23: 0.6885723735 | N23: 2004 | O23: =INDEX('Economic Data'!$AI$2:$AI$29,MATCH(N23,'Economic Data'!$AA$2:$AA$29,0)) -> 1111.865178 | P23: 1199.21 | Q23: 65.9162507 | R23: 45.3881092 | S23: 1.078557026 | T23: 0.6885723735 | AH23: 0.6885723735 | AI23: 0.9812330054 | AJ23: 0 | AK23: 0.304 | AT23: 15 | AU23: 1841.986393 | AV23: 0.9982770065 | AX23: 1.000380181 | BD23: 0.7841322843 | BE23: 1.187041956 | BF23: 1.187493247 | BG23: 1.184845586 | BI23: 0.995 | BJ23: na | BK23: 1.880417646 | BL23: 1.893540025 | BM23: 0.0001721968335 | BO23: 1.32149234 | BP23: 1.762757213 | CC23: 0.65 | CD23: 6.510703578 | CE23: 1.102186263e-35 | CF23: 3.337248664e-13
B24: 2005 | C24: 63.0313079 | D24: 45.1259715 | E24: 0.7159294802 | N24: 2005 | O24: =INDEX('Economic Data'!$AI$2:$AI$29,MATCH(N24,'Economic Data'!$AA$2:$AA$29,0)) -> 1252.162875 | P24: 1262.07 | Q24: 63.0313079 | R24: 45.1259715 | S24: 1.00791201 | T24: 0.7159294802 | AH24: 0.7159294802 | AI24: 0.9973356859 | AJ24: 0.043 | AK24: 0.608 | AT24: 16 | AU24: 2114.346034 | AV24: 1.14588416 | AX24: 0.9760743387 | BD24: 0.9285254976 | BE24: 1.393280688 | BF24: 1.359945526 | BG24: 1.411667739 | BI24: 0.999 | BJ24: na | BK24: 2.147398087 | BL24: 2.14616716 | BM24: 1.515181222e-06 | BO24: 1.446435837 | BP24: 1.948219987 | CC24: 0.7 | CD24: 6.996435247 | CE24: 3.165971265e-42 | CF24: 3.808543381e-14
B25: 2006 | C25: 64.2823795 | D25: 49.0329455 | E25: 0.7627742763 | N25: 2006 | O25: =INDEX('Economic Data'!$AI$2:$AI$29,MATCH(N25,'Economic Data'!$AA$2:$AA$29,0)) -> 1340.541902 | P25: 1416.42 | Q25: 64.2823795 | R25: 49.0329455 | S25: 1.056602556 | T25: 0.7627742763 | AH25: 0.7627742763 | AI25: 0.9850648943 | AJ25: 0.13 | AK25: 0.478 | AT25: 17 | AU25: 1759.993448 | AV25: 0.9538403747 | AX25: 1.017056552 | BD25: 0.4128836724 | BE25: 0.9221762524 | BF25: 0.9379053997 | BG25: 0.9138214141 | BM25: =SUM(BM9:BM24) -> 0.006597034514 | CC25: 0.75 | CD25: 7.482166916 | CE25: 4.969402905e-50 | CF25: 4.688073615e-15
B26: 2007 | C26: 66.9729252 | D26: 56.1782716 | E26: 0.8388206343 | N26: 2007 | O26: =INDEX('Economic Data'!$AI$2:$AI$29,MATCH(N26,'Economic Data'!$AA$2:$AA$29,0)) -> 1513.365 | P26: 1479.22 | Q26: 66.9729252 | R26: 56.1782716 | S26: 0.9774376968 | T26: 0.8388206343 | AH26: 0.8388206343 | AI26: 1.007661532 | AJ26: 0.304 | AK26: 0.739 | AT26: 18 | AU26: 1868.687085 | AV26: 1.012747628 | AX26: 0.9958844564 | BD26: 0.7407364985 | BE26: 1.147076398 | BF26: 1.142355555 | BG26: 1.14261877 | CC26: 0.8 | CD26: 7.967898586 | CE26: 1.183891402e-59 | CF26: 6.191743756e-16
B27: 2008 | C27: 72.5589898 | D27: 81.86807454 | E27: 1.12829678 | N27: 2008 | O27: =INDEX('Economic Data'!$AI$2:$AI$29,MATCH(N27,'Economic Data'!$AA$2:$AA$29,0)) -> 1557.28213 | P27: 877.56 | Q27: 72.5589898 | R27: 81.86807454 | S27: 0.5635202402 | T27: 1.12829678 | AH27: 1.12829678 | AI27: 1.349645003 | AJ27: 0.782 | AK27: 1 | AT27: 19 | AU27: 1847.98915 | AV27: 1.001530241 | AX27: 0.9993294455 | BA27: 0.2095316943 | BD27: 0.05437964624 | BE27: 0.637788805 | BF27: 0.6373611329 | BG27: 0.6393959937 | CC27: 0.85 | CD27: 8.453630255 | CE27: 3.855550058e-72 | CF27: 8.732218944e-17
B28: 2009 | C28: 70.555029 | D28: 77.2413965 | E28: 1.094768121 | N28: 2009 | O28: =INDEX('Economic Data'!$AI$2:$AI$29,MATCH(N28,'Economic Data'!$AA$2:$AA$29,0)) -> 909.302015 | P28: 1110.38 | Q28: 70.555029 | R28: 77.2413965 | S28: 1.221134432 | T28: 1.094768121 | AH28: 1.094768121 | AI28: 0.9820753075 | AJ28: 0.739 | AK28: 0.347 | AT28: 20 | AU28: 1605.043193 | AV28: 0.869864034 | AX28: 1.060398219 | BA28: 8.482859347 | BD28: 0.3534806378 | BE28: 0.8855755082 | BF28: 0.939062692 | BG28: 0.8778034496 | CC28: 0.9 | CD28: 8.939361924 | CE28: 7.670417132e-90 | CF28: 1.309252503e-17
B29: 2010 | C29: 70.3444683 | D29: 73.48303944 | E29: 1.044617171 | N29: 2010 | O29: =INDEX('Economic Data'!$AI$2:$AI$29,MATCH(N29,'Economic Data'!$AA$2:$AA$29,0)) -> 1138.114113 | P29: 1241.53 | Q29: 70.3444683 | R29: 73.48303944 | S29: 1.090866009 | T29: 1.044617171 | AH29: 1.044617171 | AI29: 0.9795471609 | AJ29: 0.652 | AK29: 0.26 | AT29: 21 | AU29: 1950.981008 | AV29: 1.057347377 | AX29: 0.9849175694 | BA29: 8.801942839 | BD29: 0.428062637 | BE29: 0.9314801337 | BF29: 0.9174311492 | BG29: 0.9230242042 | CC29: 0.95 | CD29: 9.425093594 | CE29: 2.935454603e-120 | CF29: 2.078615879e-18
B30: 2011 | C30: 71.0543505 | D30: 74.14525266 | E30: 1.043500534 | N30: 2011 | O30: =INDEX('Economic Data'!$AI$2:$AI$29,MATCH(N30,'Economic Data'!$AA$2:$AA$29,0)) -> 1267.926354 | P30: 1243.32 | Q30: 71.0543505 | R30: 74.14525266 | S30: 0.9805932309 | T30: 1.043500534 | AH30: 1.043500534 | AI30: 1.006497775 | AJ30: 0.608 | AK30: 0.695 | AT30: 22 | AU30: 2090.419391 | AV30: 1.132916953 | AX30: 0.9762948228 | BA30: 83.32241062 | BD30: 0.7093198202 | BE30: 1.120832013 | BF30: 1.094262492 | BG30: 1.115168709 | CC30: 1 | CD30: 9.910825263 | CE30: 0 | CF30: 3.481752052e-19
B31: 2012 | C31: 69.4881497 | D31: 74.24186554 | E31: 1.068410454 | N31: 2012 | O31: =INDEX('Economic Data'!$AI$2:$AI$29,MATCH(N31,'Economic Data'!$AA$2:$AA$29,0)) -> 1271.2737 | P31: 1422.29 | Q31: 69.4881497 | R31: 74.24186554 | S31: 1.118791335 | T31: 1.068410454 | AH31: 1.068410454 | AI31: 0.9769547222 | AJ31: 0.695 | AK31: 0.173 | AT31: 23 | AU31: 1997.379772 | AV31: 1.082493502 | AX31: 0.9806577178 | BA31: 0.999999734 | BD31: 0.5943610472 | BE31: 1.036843331 | BF31: 1.016788414 | BG31: 1.028725753
B32: 2013 | C32: 65.910311 | D32: 68.39259967 | E32: 1.037661614 | N32: 2013 | O32: =INDEX('Economic Data'!$AI$2:$AI$29,MATCH(N32,'Economic Data'!$AA$2:$AA$29,0)) -> 1455.865664 | P32: 1807.78 | Q32: 65.910311 | R32: 68.39259967 | S32: 1.241721709 | T32: 1.037661614 | AH32: 1.037661614 | AI32: 0.9858809461 | AJ32: 0.565 | AK32: 0.521 | AT32: 24 | AU32: 2385.688625 | AV32: 1.292940115 | AX32: 0.9993823618 | BA32: 0.2520254048 | BD32: 0.4721543152 | BE32: 0.9585961323 | BF32: 0.9580040667 | BG32: 0.9499606496
AT33: 25 | AU33: 1768.963367 | AV33: 0.9587016831 | AX33: 1.015021183 | BD33: 0.9498732317 | BE33: 1.451216585 | BF33: 1.473015575 | BG33: 1.478310879
B34: Mean | E34: =AVERAGE(E9:E32) -> 1.019341686 | N34: Mean | S34: =AVERAGE(S9:S32) -> 1.030069749 | T34: =AVERAGE(T9:T32) -> 1.019341686 | AT34: 26 | AU34: 1340.821842 | AV34: 0.7266674826 | AX34: 1.169981244 | BD34: 0.2881427919 | BE34: 0.8441162548 | BF34: 0.9876001859 | BG34: 0.8373343102
B35: Std Dev | E35: =_xlfn.STDEV.S(E9:E32) -> 0.2624496314 | N35: Std Dev | S35: =_xlfn.STDEV.S(S9:S32) -> 0.1639028199 | T35: =_xlfn.STDEV.S(T9:T32) -> 0.2624496314 | AJ35: x | AK35: y | AT35: 27 | AU35: 1057.741053 | AV35: 0.5732499305 | AX35: 1.337293227 | BD35: 0.1725097501 | BE35: 0.7619991567 | BF35: 1.019016311 | BG35: 0.7580395166
AJ36: 0 | AK36: 0 | AT36: 28 | AU36: 1905.207192 | AV36: 1.032539947 | AX36: 0.9904791234 | BD36: 0.04572290498 | BE36: 0.623406267 | BF36: 0.6174708928 | BG36: 0.6256792221
AJ37: 1 | AK37: 1 | AT37: 29 | AU37: 2247.707862 | AV37: 1.218160506 | AX37: 0.981602412 | BD37: 0.5299783471 | BE37: 0.9947974568 | BF37: 0.976495583 | BG37: 0.9862029274
AT38: 30 | AU38: 1445.472162 | AV38: 0.7833834324 | AX38: 1.121199393 | BD38: 0.8480988752 | BE38: 1.25808598 | BF38: 1.410565237 | BG38: 1.261237512
AT39: 31 | AU39: 1716.761185 | AV39: 0.9304103565 | AX39: 1.027593386 | BD39: 0.6109038729 | BE39: 1.048086614 | BF39: 1.077006873 | BG39: 1.040178642
AT40: 32 | AU40: 1830.308812 | AV40: 0.9919482627 | AX40: 1.002490758 | BD40: 0.9634120508 | BE40: 1.500349079 | BF40: 1.504086084 | BG40: 1.535913184
AT41: 33 | AU41: 1934.548713 | AV41: 1.048441783 | AX41: 0.9867587934 | BD41: 0.1383593563 | BE41: 0.7332539487 | BF41: 0.7235447817 | BG41: 0.7304921211
AT42: 34 | AU42: 1700.231687 | AV42: 0.9214520832 | AX42: 1.031940263 | BD42: 0.4845136897 | BE42: 0.9662525659 | BF42: 0.9971149274 | BG42: 0.9575983798
AT43: 35 | AU43: 2219.380853 | AV43: 1.202808491 | AX43: 0.9794697811 | BD43: 0.6613223704 | BE43: 1.083892188 | BF43: 1.061639644 | BG43: 1.076892687
AT44: 36 | AU44: 1155.46804 | AV44: 0.6262137334 | AX44: 1.273697687 | BD44: 0.8379669912 | BE44: 1.24550597 | BF44: 1.586398074 | BG44: 1.247582722
AT45: 37 | AU45: 1734.435833 | AV45: 0.9399892522 | AX45: 1.0231401 | BD45: 0.06546944934 | BE45: 0.6541508737 | BF45: 0.6692879905 | BG45: 0.6549938511
AT46: 38 | AU46: 2162.57476 | AV46: 1.172022044 | AX46: 0.9767508966 | BD46: 0.05658656234 | BE46: 0.6412080466 | BF46: 0.6263005344 | BG46: 0.6426559295
AT47: 39 | AU47: 1754.159412 | AV47: 0.9506785791 | AX47: 1.018408177 | BD47: 0.0499087556 | BE47: 0.6305691781 | BF47: 0.6421768073 | BG47: 0.6325115852
AT48: 40 | AU48: 2153.88031 | AV48: 1.167310028 | AX48: 0.9765182059 | BD48: 0.4309508085 | BE48: 0.9332508673 | BF48: 0.9113364626 | BG48: 0.9247779411
AT49: 41 | AU49: 1834.50187 | AV49: 0.9942207188 | AX49: 1.001722806 | BD49: 0.9623062434 | BE49: 1.495784415 | BF49: 1.49836136 | BG49: 1.530518658
AT50: 42 | AU50: 2070.207708 | AV50: 1.121963095 | AX50: 0.9767684453 | BD50: 0.4449879395 | BE50: 0.9418638677 | BF50: 0.9199829058 | BG50: 0.9333186477
X51: Text Table 2 | AT51: 43 | AU51: 2150.157286 | AV51: 1.16529231 | AX51: 0.9764334582 | BD51: 0.9618595098 | BE51: 1.493973686 | BF51: 1.458765892 | BG51: 1.528381198
X52: Data Points in S&P Error Regions | AT52: 44 | AU52: 2286.086742 | AV52: 1.2389602 | AX52: 0.9853164832 | BD52: 0.3217706273 | BE52: 0.8656929599 | BF52: 0.8529815427 | BG52: 0.8583543697
W53: -1 | X53: =-1+W53 -> -2 | Y53: =-1+X53 -> -3 | Z53: -4 | AA53: -5 | AT53: 45 | AU53: 2057.852186 | AV53: 1.115266936 | AX53: 0.9771875922 | BD53: 0.3450176433 | BE53: 0.8803029529 | BF53: 0.8602211229 | BG53: 0.872638135
W54: S&P Error Range | X54: LR Error | AT54: 46 | AU54: 1599.906213 | AV54: 0.8670800131 | AX54: 1.062100007 | BD54: 0.5804258563 | BE54: 1.027530363 | BF54: 1.091340005 | BG54: 1.019265826
X55: <1.0 | Y55: ≥1.0 | Z55: Total | AA55: % ≥1.0 | AT55: 47 | AU55: 1927.321107 | AV55: 1.044524733 | AX55: 0.9876237252 | BD55: 0.9055106986 | BE55: 1.345408865 | BF55: 1.328757715 | BG55: 1.357608973
W56: <0.9 | X56: =COUNTIFS($S$9:$S$32,"<0.9",$T$9:$T$32,"<1") -> 0 | Y56: =COUNTIFS($S$9:$S$32,"<0.9",$T$9:$T$32,">1") -> 4 | Z56: =COUNTIFS($S$9:$S$32,"<0.9") -> 4 | AA56: =X56/Z56 -> 0 | AD56: 4 | AT56: 48 | AU56: 2491.371895 | AV56: 1.350215879 | AX56: 1.021295649 | BD56: 0.02032188481 | BE56: 0.5654740808 | BF56: 0.5775162182 | BG56: 0.570263689
W57: ≥.9; ≤1 | X57: =COUNTIFS($S$9:$S$32,">=0.9",$S$9:$S$32,"<=1.0",$T$9:$T$32,"<1") -> 2 | Y57: =COUNTIFS($S$9:$S$32,">=0.9",$S$9:$S$32,"<=1.0",$T$9:$T$32,">1") -> 2 | Z57: =COUNTIFS($S$9:$S$32,">=0.9",$S$9:$S$32,"<=1.0") -> 4 | AA57: =X57/Z57 -> 0.5 | AD57: 2 | AT57: 49 | AU57: 2118.588922 | AV57: 1.148183621 | AX57: 0.976073741 | BD57: 0.9606689493 | BE57: 1.489237486 | BF57: 1.453605605 | BG57: 1.522796987
W58: ≥1;≤1.1 | X58: =COUNTIFS($S$9:$S$32,">=1.0",$S$9:$S$32,"<=1.1",$T$9:$T$32,"<1") -> 6 | Y58: =COUNTIFS($S$9:$S$32,">=1.0",$S$9:$S$32,"<=1.1",$T$9:$T$32,">1") -> 1 | Z58: =COUNTIFS($S$9:$S$32,">=1.0",$S$9:$S$32,"<=1.1") -> 7 | AA58: 0.8571428571 | AD58: 1 | AT58: 50 | AU58: 1563.403569 | AV58: 0.8472971578 | AX58: 1.074682281 | BD58: 0.5914577084 | BE58: 1.034891674 | BF58: 1.112179745 | BG58: 1.026741312
W59: >1.1 | X59: =COUNTIFS($S$9:$S$32,">1.1",$T$9:$T$32,"<1") -> 4 | Y59: =COUNTIFS($S$9:$S$32,">1.1",$T$9:$T$32,">1") -> 5 | Z59: =COUNTIFS($S$9:$S$32,">1.1") -> 9 | AA59: 0.4444444444 | AD59: 4 | AT59: 51 | AU59: 1833.76729 | AV59: 0.993822608 | AX59: 1.001856524 | BD59: 0.8396825038 | BE59: 1.247593023 | BF59: 1.24990921 | BG59: 1.249844207
AT60: 52 | AU60: 2028.008869 | AV60: 1.099093148 | AX60: 0.9786056627 | BD60: 0.05535099703 | BE60: 0.6393048139 | BF60: 0.625627311 | BG60: 0.6408414069
AT61: 53 | AU61: 1742.839278 | AV61: 0.944543556 | AX61: 1.02109337 | BD61: 0.2836303115 | BE61: 0.8411703249 | BF61: 0.8589134416 | BG61: 0.8344710111
AT62: 54 | AU62: 1765.957382 | AV62: 0.9570725692 | AX62: 1.015697498 | BD62: 0.5277565594 | BE62: 0.9933850781 | BF62: 1.008978738 | BG62: 0.9847826963
AT63: 55 | AU63: 376.064382 | AV63: 0.20381064 | AX63: 1.952038177 | BD63: 0.8275421043 | BE63: 1.233169894 | BF63: 2.407194712 | BG63: 1.234246877
AT64: 56 | AU64: 1581.413952 | AV64: 0.8570580064 | AX64: 1.06836691 | BD64: 0.3445365631 | BE64: 0.8800025757 | BF64: 0.9401656323 | BG64: 0.8723440371
AT65: 57 | AU65: 2370.410357 | AV65: 1.284659955 | AX65: 0.9968097485 | BD65: 0.03224908465 | BE65: 0.5967542404 | BF65: 0.5948504442 | BG65: 0.6002286822
AT66: 58 | AU66: 2918.934361 | AV66: 1.581936255 | AX66: 1.183393545 | BD66: 0.3239000726 | BE66: 0.8670401282 | BF66: 1.026049691 | BG66: 0.859669702
AT67: 59 | AU67: 1755.155767 | AV67: 0.9512185604 | AX67: 1.01817579 | BD67: 0.285726878 | BE67: 0.8425407423 | BF67: 0.8578545857 | BG67: 0.8358027967
AT68: 60 | AU68: 1656.796009 | AV68: 0.8979118231 | AX68: 1.044201865 | BD68: 0.6828798832 | BE68: 1.100076893 | BF68: 1.148702343 | BG68: 1.093611857
AT69: 61 | AU69: 1984.995001 | AV69: 1.075781491 | AX69: 0.9816590612 | BD69: 0.7496275604 | BE69: 1.154874166 | BF69: 1.13369269 | BG69: 1.150816935
AT70: 62 | AU70: 1447.678357 | AV70: 0.7845790949 | AX70: 1.120246934 | BD70: 0.1996719905 | BE70: 0.7829319136 | BF70: 0.8770770756 | BG70: 0.7781598063
AT71: 63 | AU71: 2109.283106 | AV71: 1.143140272 | AX71: 0.9760902288 | BD71: 0.2755994917 | BE71: 0.8358925396 | BF71: 0.8159065402 | BG71: 0.8293451064
AT72: 64 | AU72: 1855.887508 | AV72: 1.00581081 | AX72: 0.9979822677 | BD72: 0.5428602685 | BE72: 1.003029572 | BF72: 1.001005727 | BG72: 0.9944911826
AT73: 65 | AU73: 1733.04623 | AV73: 0.9392361473 | AX73: 1.023482934 | BD73: 0.873715483 | BE73: =_xlfn.BETA.INV(BD73,$BA$11,$BA$12,$BA$9,$BA$10) -> 1.293068345 | BF73: =AX73*BE73 -> 1.323433383 | BG73: =_xlfn.LOGNORM.INV(BD73,$H$15,$H$14) -> 1.299507046
AT74: 66 | AU74: 1498.959 | AV74: =AU74/$AU$4 -> 0.8123709865 | AX74: =$AF$11+$AF$10*AV74+$AF$9*AV74^2 -> 1.098991585 | BD74: 0.315598928 | BE74: 0.8617770194 | BF74: 0.9470856924 | BG74: 0.8545329559
AT75: 67 | AU75: 1316.450806 | AV75: 0.7134594344 | AX75: 1.182354482 | BD75: 0.1158054815 | BE75: 0.7121537317 | BF75: 0.8420181565 | BG75: 0.71032009
AT76: 68 | AU76: 1267.072063 | AV76: 0.6866982901 | AX76: 1.208597273 | BD76: 0.5898090752 | BE76: 1.033786165 | BF76: 1.24943114 | BG76: 1.025617701
AT77: 69 | AU77: 1828.36207 | AV77: 0.9908932124 | AX77: 1.002851151 | BD77: 0.9756528836 | BE77: 1.561253791 | BF77: 1.565705161 | BG77: 1.608753314
AT78: 70 | AU78: 2312.81094 | AV78: 1.25344356 | AX78: 0.9884631297 | BD78: 0.01098745388 | BE78: 0.5294145436 | BF78: 0.5233067567 | BG78: 0.5355067355
AT79: 71 | AU79: 1705.417411 | AV79: 0.9242625216 | AX79: 1.030557588 | BD79: 0.3663427381 | BE79: 0.8935515561 | BF79: 0.9208563364 | BG79: 0.8856281316
AT80: 72 | AU80: 2124.712569 | AV80: 1.151502374 | AX80: 0.9760933273 | BD80: 0.5531686004 | BE80: 1.009674478 | BF80: 0.9855365204 | BG80: 1.001194438
AT81: 73 | AU81: 1510.101829 | AV81: 0.8184099186 | AX81: 1.094597048 | BD81: 0.4038304029 | BE81: 0.916625112 | BF81: 1.003335142 | BG81: 0.9083399029
AT82: 74 | AU82: 2049.163515 | AV82: 1.110558052 | AX82: 0.9775412448 | BD82: 0.8225182876 | BE82: 1.227423844 | BF82: 1.199857432 | BG82: 1.228053284
AT83: 75 | AU83: 1570.072282 | AV83: 0.850911312 | AX83: 1.072319522 | BD83: 0.2649806682 | BE83: 0.8288393665 | BF83: 0.8887806331 | BG83: 0.8225024584
AT84: 76 | AU84: 1850.442907 | AV84: 1.002860072 | AX84: 0.9989066187 | BD84: 0.8302069368 | BE84: 1.236268729 | BF84: 1.234917016 | BG84: 1.237591843
AT85: 77 | AU85: 2030.284386 | AV85: 1.10032638 | AX85: 0.9784773292 | BD85: 0.4917513919 | BE85: 0.9707531964 | BF85: 0.9498599949 | BG85: 0.9620947645
AT86: 78 | AU86: 1642.189628 | AV86: 0.8899957962 | AX86: 1.048598242 | BD86: 0.556487518 | BE86: 1.011825661 | BF86: 1.06099861 | BG86: 1.003367029
AT87: 79 | AU87: 1557.819511 | AV87: 0.8442708395 | AX87: 1.076682782 | BD87: 0.6339280017 | BE87: 1.064122127 | BF87: 1.145721972 | BG87: 1.056575096
AT88: 80 | AU88: 2176.572175 | AV88: 1.179608038 | AX88: 0.9772278272 | BD88: 0.8944683275 | BE88: 1.325805275 | BF88: 1.295613808 | BG88: 1.335726925
AT89: 81 | AU89: 1333.284679 | AV89: 0.7225826656 | AX89: 1.17376701 | BD89: 0.04438174409 | BE89: 0.6210179221 | BF89: 0.7289303498 | BG89: 0.6234005357
AT90: 82 | AU90: 2419.21795 | AV90: 1.31111156 | AX90: 1.005555313 | BD90: 0.9715447994 | BE90: 1.538263454 | BF90: 1.546808988 | BG90: 1.581067228
AT91: 83 | AU91: 1528.757092 | AV91: 0.8285202645 | AX91: 1.087418807 | BD91: 0.3058622773 | BE91: 0.8555616911 | BF91: 0.9303538731 | BG91: 0.8484736517
AT92: 84 | AU92: 1782.416843 | AV92: 0.9659928854 | AX92: 1.012065625 | BD92: 0.2736576379 | BE92: 0.8346092998 | BF92: 0.8446793828 | BG92: 0.8280995315
AT93: 85 | AU93: 1884.865924 | AV93: 1.021515859 | AX93: 0.993383819 | BD93: 0.2773515604 | BE93: 0.8370479481 | BF93: 0.8315098874 | BG93: 0.8304668473
AT94: 86 | AU94: 2213.151452 | AV94: 1.199432426 | AX94: 0.9790701363 | BD94: 0.1861005043 | BE94: 0.7726487217 | BF94: 0.7564772892 | BG94: 0.7682688117
AT95: 87 | AU95: 1955.02577 | AV95: 1.059539463 | AX95: 0.9844910375 | BD95: 0.195319552 | BE95: 0.779669129 | BF95: 0.7675772697 | BG95: 0.775019958
AT96: 88 | AU96: 1875.944799 | AV96: 1.016680995 | AX96: 0.9947418312 | BD96: 0.4511212183 | BE96: 0.9456325345 | BF96: 0.9406602391 | BG96: 0.9370611533
AT97: 89 | AU97: 1942.397372 | AV97: 1.052695417 | AX97: 0.9858576565 | BD97: 0.6033682342 | BE97: 1.042938308 | BF97: 1.028188716 | BG97: 1.034929955
AT98: 90 | AU98: 1693.149882 | AV98: 0.9176140509 | AX98: 1.033856478 | BD98: 0.969736872 | BE98: 1.529072859 | BF98: 1.58084188 | BG98: 1.570064454
AT99: 91 | AU99: 1692.632466 | AV99: 0.9173336337 | AX99: 1.033997748 | BD99: 0.09877954429 | BE99: 0.6946350356 | BF99: 0.7182510629 | BG99: 0.6935957534
AT100: 92 | AU100: 2037.203559 | AV100: 1.104076272 | AX100: 0.9781075988 | BD100: 0.893305579 | BE100: 1.323839771 | BF100: 1.294857739 | BG100: 1.333541008
AT101: 93 | AU101: 1800.78617 | AV101: 0.9759482666 | AX101: 1.00821842 | BD101: 0.6110797792 | BE101: 1.048207349 | BF101: 1.056821957 | BG101: 1.04030182
AT102: 94 | AU102: 1787.277031 | AV102: 0.9686268973 | AX102: 1.011026575 | BD102: 0.1435379468 | BE102: 0.7378301098 | BF102: 0.745965849 | BG102: 0.734871986
AT103: 95 | AU103: 1917.541324 | AV103: 1.039224514 | AX103: 0.9888476561 | BD103: 0.2397551976 | BE103: 0.8116871231 | BF103: 0.8026349092 | BG103: 0.8058968369
AT104: 96 | AU104: 1618.677952 | AV104: 0.8772534841 | AX104: 1.055963721 | BD104: 0.3405779349 | BE104: 0.8775280109 | BF104: 0.9266377436 | BG104: 0.8699218945
AT105: 97 | AU105: 1881.428028 | AV105: 1.019652668 | AX105: 0.993901078 | BD105: 0.7265326957 | BE105: 1.134973615 | BF105: 1.128051499 | BG105: 1.129932995
AT106: 98 | AU106: 1691.470447 | AV106: 0.9167038698 | AX106: 1.034315644 | BD106: 0.6816443847 | BE106: 1.09913262 | BF106: 1.136850064 | BG106: 1.092634238
AT107: 99 | AU107: 1397.462363 | AV107: 0.7573641964 | AX107: 1.142702793 | BD107: 0.8503880553 | BE107: 1.261016816 | BF107: 1.440967437 | BG107: 1.264426823
AT108: 100 | AU108: 2101.323522 | AV108: 1.138826521 | AX108: 0.9761485996 | BD108: 0.7924858047 | BE108: 1.195360641 | BF108: 1.166849616 | BG108: 1.1937012
AT109: 101 | AU109: 1610.829234 | AV109: 0.8729998181 | AX109: 1.058501769 | BD109: 0.8513085142 | BE109: 1.262205011 | BF109: 1.336046236 | BG109: 1.265720681
AT110: 102 | AU110: 1784.656934 | AV110: 0.9672069177 | AX110: 1.01158483 | BD110: 0.867545508 | BE110: 1.284167464 | BF110: 1.299044326 | BG110: 1.289727678
AT111: 103 | AU111: 2196.834619 | AV111: 1.190589407 | AX111: 0.9781418409 | BD111: 0.6775471876 | BE111: 1.0960163 | BF111: 1.072059402 | BG111: 1.089409778
AT112: 104 | AU112: 1385.437601 | AV112: 0.7508472954 | AX112: 1.14832118 | BD112: 0.863290741 | BE112: 1.278217793 | BF112: 1.467804564 | BG112: 1.28320691
AT113: 105 | AU113: 1348.930598 | AV113: 0.7310620778 | AX113: 1.165949246 | BD113: 0.762712542 | BE113: 1.166693407 | BF113: 1.360305298 | BG113: 1.16328051
AT114: 106 | AU114: 1754.447984 | AV114: 0.9508349725 | AX114: 1.018340806 | BD114: 0.3956487651 | BE114: 0.9116041623 | BF114: 0.9283237171 | BG114: 0.9033878347
AT115: 107 | AU115: 2097.134211 | AV115: 1.136556095 | AX115: 0.9761957163 | BD115: 0.07983289152 | BE115: 0.67288269 | BF115: 0.6568651995 | BG115: 0.6728499848
AT116: 108 | AU116: 1668.540666 | AV116: 0.9042769198 | AX116: 1.040766531 | BD116: 0.2897100309 | BE116: 0.8451362705 | BF116: 0.8795895449 | BG116: 0.8383260778
AT117: 109 | AU117: 1878.177207 | AV117: 1.017890863 | AX117: 0.9943971945 | BD117: 0.2147579765 | BE117: 0.7940096974 | BF117: 0.7895610155 | BG117: 0.7888310937
AT118: 110 | AU118: 2051.796503 | AV118: 1.111985018 | AX118: 0.9774289388 | BD118: 0.5409628503 | BE118: 1.001812218 | BF118: 0.9792002532 | BG118: 0.9932644061
AT119: 111 | AU119: 1844.646869 | AV119: 0.9997188697 | AX119: 0.9999116212 | BD119: 0.3932169364 | BE119: 0.9101106665 | BF119: 0.910030232 | BG119: 0.9019158992
AT120: 112 | AU120: 1622.642217 | AV120: 0.8794019442 | AX120: 1.054696878 | BD120: 0.8174568208 | BE120: 1.221755624 | BF120: 1.288581842 | BG120: 1.2219548
AT121: 113 | AU121: 2090.764332 | AV121: 1.133103897 | AX121: 0.9762890239 | BD121: 0.3695947984 | BE121: 0.8955621081 | BF121: 0.8743274564 | BG121: 0.8876026214
AT122: 114 | AU122: 2087.967941 | AV122: 1.131588374 | AX122: 0.9763382431 | BD122: 0.5050987018 | BE122: 0.9790917047 | BF122: 0.9559246748 | BG122: 0.9704387832
AT123: 115 | AU123: 1739.4739 | AV123: 0.9427196667 | AX123: 1.021907575 | BD123: 0.5003753936 | BE123: 0.9761347347 | BF123: 0.9975194792 | BG123: 0.9674778587
AT124: 116 | AU124: 1811.052261 | AV124: 0.9815120443 | AX124: 1.006163023 | BD124: 0.565890703 | BE124: 1.017953644 | BF124: 1.024227316 | BG124: 1.009562801
AT125: 117 | AU125: 1791.605045 | AV125: 0.9709724936 | AX125: 1.010114108 | BD125: 0.4505100397 | BE125: 0.9452568007 | BF125: 0.9548172297 | BG125: 0.9366878769
AT126: 118 | AU126: 1497.699369 | AV126: 0.8116883209 | AX126: 1.099493394 | BD126: 0.4757925964 | BE126: 0.9608465105 | BF126: 1.056444391 | BG126: 0.9522040395
AT127: 119 | AU127: 2131.873592 | AV127: 1.155383338 | AX127: 0.9761468759 | BD127: 0.1379138053 | BE127: 0.7328560251 | BF127: 0.7153751194 | BG127: 0.7301113577
AT128: 120 | AU128: 1016.710924 | AV128: 0.5510133745 | AX128: 1.365827393 | BD128: 0.5838564234 | BE128: 1.029810519 | BF128: 1.406543416 | BG128: 1.02157975
AT129: 121 | AU129: 1805.868785 | AV129: 0.9787028242 | AX129: 1.007192332 | BD129: 0.09241033715 | BE129: 0.6876286093 | BF129: 0.6925742625 | BG129: 0.686911599
AT130: 122 | AU130: 2057.362193 | AV130: 1.115001381 | AX130: 0.9772062422 | BD130: 0.1195272437 | BE130: 0.7157829303 | BF130: 0.6994675475 | BG130: 0.713787179
AT131: 123 | AU131: 1846.206922 | AV131: 1.000564351 | AX131: 0.9996389874 | BD131: 0.774805643 | BE131: 1.178017404 | BF131: 1.177592125 | BG131: 1.175264635
AT132: 124 | AU132: 1964.054344 | AV132: 1.06443256 | AX132: 0.9835769698 | BD132: 0.9231100631 | BE132: 1.380967421 | BF132: 1.358287752 | BG132: 1.397677484
AT133: 125 | AU133: 1967.313055 | AV133: 1.06619864 | AX133: 0.9832599506 | BD133: 0.1939247258 | BE133: 0.7786166953 | BF133: 0.7655826133 | BG133: 0.7740074805
AT134: 126 | AU134: 1799.328864 | AV134: 0.9751584698 | AX134: 1.008515694 | BD134: 0.5102085771 | BE134: 0.9822988918 | BF134: 0.9906638482 | BG134: 0.9736527625
AT135: 127 | AU135: 1771.684503 | AV135: 0.9601764209 | AX135: 1.014413977 | BD135: 0.9468986716 | BE135: 1.442000531 | BF135: 1.462785493 | BG135: 1.467618317
AT136: 128 | AU136: 2000.84331 | AV136: 1.084370589 | AX136: 0.980395363 | BD136: 0.03728398877 | BE136: 0.607481381 | BF136: 0.595571929 | BG136: 0.6104788093
AT137: 129 | AU137: 1998.066575 | AV137: 1.082865719 | AX137: 0.9806050798 | BD137: 0.390558588 | BE137: =_xlfn.BETA.INV(BD137,$BA$11,$BA$12,$BA$9,$BA$10) -> 0.9084773468 | BF137: =AX137*BE137 -> 0.8908575011 | BG137: =_xlfn.LOGNORM.INV(BD137,$H$15,$H$14) -> 0.900306717
AT138: 130 | AU138: 2104.813823 | AV138: =AU138/$AU$4 -> 1.140718113 | AX138: =$AF$11+$AF$10*AV138+$AF$9*AV138^2 -> 0.9761179789 | BD138: 0.1592431412 | BE138: 0.7512072375 | BF138: 0.7332668904 | BG138: 0.7476870696
AT139: 131 | AU139: 2665.032003 | AV139: 1.444332152 | AX139: 1.072930431 | BD139: 0.1470092054 | BE139: 0.7408492108 | BF139: 0.794879663 | BG139: 0.7377626678
AT140: 132 | AU140: 1953.728961 | AV140: 1.058836649 | AX140: 0.9846266418 | BD140: 0.9804455039 | BE140: 1.592954828 | BF140: 1.568465763 | BG140: 1.64731539
AT141: 133 | AU141: 2309.471351 | AV141: 1.251633647 | AX141: 0.9880447526 | BD141: 0.753040706 | BE141: 1.157916378 | BF141: 1.144073201 | BG141: 1.154020665
AT142: 134 | AU142: 1571.016188 | AV142: 0.8514228678 | AX142: 1.071987406 | BD142: 0.4248055927 | BE142: 0.9294835664 | BF142: 0.9963946772 | BG142: 0.9210476666
AT143: 135 | AU143: 1889.988219 | AV143: 1.024291922 | AX143: 0.9926272529 | BD143: 0.4363128554 | BE143: 0.9365393646 | BF143: 0.9296344967 | BG143: 0.9280367964
AT144: 136 | AU144: 1901.069897 | AV144: 1.030297712 | AX144: 0.9910483259 | BD144: 0.7810957497 | BE144: 1.184074366 | BF144: 1.173474918 | BG144: 1.181692047
AT145: 137 | AU145: 1752.112346 | AV145: 0.9495691579 | AX145: 1.018887637 | BD145: 0.8326947519 | BE145: 1.239194826 | BF145: 1.262600288 | BG145: 1.240753432
AT146: 138 | AU146: 1848.644261 | AV146: 1.001885284 | AX146: 0.9992161783 | BD146: 0.2489663154 | BE146: 0.8180211472 | BF146: 0.8173799644 | BG146: 0.812023426
AT147: 139 | AU147: 2252.481455 | AV147: 1.220747587 | AX147: 0.9820126961 | BD147: 0.4909782795 | BE147: 0.9702717919 | BF147: 0.9528192183 | BG147: 0.9616135738
AT148: 140 | AU148: 1889.125037 | AV148: 1.023824114 | AX148: 0.9927535613 | BD148: 0.8449615666 | BE148: 1.254123858 | BF148: 1.245035926 | BG148: 1.256930828
AT149: 141 | AU149: 2195.931462 | AV149: 1.190099935 | AX149: 0.9780954684 | BD149: 0.9994844485 | BE149: 2.048547001 | BF149: 2.003674538 | BG149: 2.256296184
AT150: 142 | AU150: 1343.909726 | AV150: 0.7283409823 | AX150: 1.168440831 | BD150: 0.4178489011 | BE150: 0.9252196648 | BF150: 1.081064434 | BG150: 0.9168295922
AT151: 143 | AU151: 1695.573577 | AV151: 0.9189275887 | AX151: 1.033197031 | BD151: 0.731584497 | BE151: 1.139230595 | BF151: 1.177049668 | BG151: 1.134389732
AT152: 144 | AU152: 1966.970843 | AV152: 1.066013176 | AX152: 0.9832929207 | BD152: 0.1233878151 | BE152: 0.719481273 | BF152: 0.7074608423 | BG152: 0.7173213116
AT153: 145 | AU153: 1982.587524 | AV153: 1.074476742 | AX153: 0.9818651841 | BD153: 0.177690204 | BE153: 0.7661035359 | BF153: 0.7522103893 | BG153: 0.761980287
AT154: 146 | AU154: 1550.349107 | AV154: 0.8402222033 | AX154: 1.079390484 | BD154: 0.1825303573 | BE154: 0.7698874953 | BF154: 0.8310092364 | BG154: 0.7656152154
AT155: 147 | AU155: 1585.333143 | AV155: 0.8591820387 | AX155: 1.067020324 | BD155: 0.9545702004 | BE155: 1.466782827 | BF155: 1.565087087 | BG155: 1.496450888
AT156: 148 | AU156: 1927.981506 | AV156: 1.044882641 | AX156: 0.9875432978 | BD156: 0.7382240176 | BE156: 1.144904802 | BF156: 1.130643064 | BG156: 1.140339137
AT157: 149 | AU157: 1526.252277 | AV157: 0.8271627632 | AX157: 1.088369587 | BD157: 0.02613074344 | BE157: 0.5819949553 | BF157: 0.6334256093 | BG157: 0.5861062118
AT158: 150 | AU158: 1439.432769 | AV158: 0.7801103427 | AX158: 1.123822762 | BD158: 0.9181376686 | BE158: 1.370286622 | BF158: 1.539959296 | BG158: 1.385590354
AT159: 151 | AU159: 1964.682313 | AV159: 1.064772892 | AX159: 0.9835153465 | BD159: 0.6056548641 | BE159: 1.044495661 | BF159: 1.027277512 | BG159: 1.036516886
AT160: 152 | AU160: 1941.174157 | AV160: 1.052032487 | AX160: 0.9859954883 | BD160: 0.9777993539 | BE160: 1.574686249 | BF160: 1.552633537 | BG160: 1.625037883
AT161: 153 | AU161: 1821.662702 | AV161: 0.9872624449 | AX161: 1.004110038 | BD161: 0.1225659203 | BE161: 0.7186993685 | BF161: 0.7216532501 | BG161: 0.7165740387
AT162: 154 | AU162: 2110.272178 | AV162: 1.143676306 | AX162: 0.9760858266 | BD162: 0.3548104586 | BE162: 0.8864021196 | BF162: 0.8652045456 | BG162: 0.878613763
AT163: 155 | AU163: 1789.99186 | AV163: 0.9700982172 | AX163: 1.010452802 | BD163: 0.1819237993 | BE163: 0.7694158915 | BF163: 0.7774584433 | BG163: 0.7651620896
AT164: 156 | AU164: 1548.914967 | AV164: 0.8394449616 | AX164: 1.079914412 | BD164: 0.9133890985 | BE164: 1.36058047 | BF164: 1.469310458 | BG164: 1.374644825
AT165: 157 | AU165: 1670.321015 | AV165: 0.9052417919 | AX165: 1.040253533 | BD165: 0.7713518167 | BE165: 1.174741425 | BF165: 1.222028918 | BG165: 1.171793349
AT166: 158 | AU166: 1534.091967 | AV166: 0.8314115362 | AX166: 1.085407261 | BD166: 0.07784148484 | BE166: 0.6704197451 | BF166: 0.7276784589 | BG166: 0.6705019206
AT167: 159 | AU167: 1637.455272 | AV167: 0.8874299795 | AX167: 1.050052733 | BD167: 0.3019801376 | BE167: 0.8530697308 | BF167: 0.895768202 | BG167: 0.8460462838
AT168: 160 | AU168: 1892.282694 | AV168: 1.025535428 | AX168: 0.9922938396 | BD168: 0.191581997 | BE168: 0.7768413849 | BF168: 0.7708549205 | BG168: 0.7722999003
AT169: 161 | AU169: 2210.183956 | AV169: 1.197824171 | AX169: 0.9788885491 | BD169: 0.5317019392 | BE169: 0.9958945889 | BF169: 0.9748698092 | BG169: 0.9873065175
AT170: 162 | AU170: 1864.247282 | AV170: 1.010341446 | AX170: 0.9966001705 | BD170: 0.2406599142 | BE170: 0.8123131682 | BF170: 0.8095514419 | BG170: 0.8065020956
AT171: 163 | AU171: 1632.915074 | AV171: 0.8849693885 | AX171: 1.051461138 | BD171: 0.5303015608 | BE171: 0.9950030971 | BF171: 1.046207089 | BG171: 0.9864097542
AT172: 164 | AU172: 1937.694351 | AV172: 1.050146583 | AX172: 0.9863928643 | BD172: 0.08900748092 | BE172: 0.6837662754 | BF172: 0.6744621749 | BG172: 0.6832278039
AT173: 165 | AU173: 1729.552384 | AV173: 0.9373426338 | AX173: 1.024350407 | BD173: 0.4863571681 | BE173: 0.9673976173 | BF173: 0.9909541433 | BG173: 0.9587418744
AT174: 166 | AU174: 1428.503779 | AV174: 0.7741873023 | AX174: 1.128629794 | BD174: 0.2276858736 | BE174: 0.8032476363 | BF174: 0.9065692141 | BG174: 0.7977435024
AT175: 167 | AU175: 1744.66352 | AV175: 0.945532216 | AX175: 1.02065507 | BD175: 0.6548285665 | BE175: 1.079130447 | BF175: 1.101419962 | BG175: 1.071988575
AT176: 168 | AU176: 1888.108304 | AV176: 1.023273089 | AX176: 0.9929029541 | BD176: 0.5413239544 | BE176: 1.002043764 | BF176: 0.9949322133 | BG176: 0.9934977141
AT177: 169 | AU177: 1810.212484 | AV177: 0.9810569212 | AX177: 1.006328607 | BD177: 0.0479622975 | BE177: 0.6272907591 | BF177: 0.6312606359 | BG177: 0.6293847444
AT178: 170 | AU178: 1898.95812 | AV178: 1.02915322 | AX178: 0.991343112 | BD178: 0.8566013214 | BE178: 1.269149817 | BF178: 1.258162929 | BG178: 1.273293189
AT179: 171 | AU179: 2141.032151 | AV179: 1.160346881 | AX179: 0.976263508 | BD179: 0.7068768916 | BE179: 1.11886765 | BF179: 1.092309657 | BG179: 1.113122786
AT180: 172 | AU180: 1861.585915 | AV180: 1.0088991 | AX180: 0.9970352814 | BD180: 0.02278190988 | BE180: 0.5728404029 | BF180: 0.5711420923 | BG180: 0.5773326493
AT181: 173 | AU181: 1988.266345 | AV181: 1.077554418 | AX181: 0.9813849603 | BD181: 0.5983155784 | BE181: 1.039511655 | BF181: 1.020161104 | BG181: 1.031440618
AT182: 174 | AU182: 1886.51017 | AV182: 1.022406969 | AX182: 0.9931391207 | BD182: 0.8265361885 | BE182: 1.232009466 | BF182: 1.223556797 | BG182: 1.232995141
AT183: 175 | AU183: 1620.674678 | AV183: 0.8783356231 | AX183: 1.05532437 | BD183: 0.6373100651 | BE183: 1.06651971 | BF183: 1.125524241 | BG183: 1.059032997
AT184: 176 | AU184: 1627.637414 | AV184: 0.8821091254 | AX184: 1.053115001 | BD184: 0.5437644883 | BE184: 1.003610316 | BF184: 1.056917079 | BG184: 0.99507656
AT185: 177 | AU185: 1803.212404 | AV185: 0.9772631808 | AX185: 1.007726531 | BD185: 0.6219364441 | BE185: 1.055710351 | BF185: 1.063867329 | BG185: 1.04796481
AT186: 178 | AU186: 2359.042478 | AV186: 1.278499055 | AX186: 0.9949931566 | BD186: 0.6122422816 | BE186: 1.049005895 | BF186: 1.043753687 | BG186: 1.041116634
AT187: 179 | AU187: 1667.602639 | AV187: 0.9037685494 | AX187: 1.041037641 | BD187: 0.8089537708 | BE187: 1.21248851 | BF187: 1.262246178 | BG187: 1.212008074
AT188: 180 | AU188: 1777.271384 | AV188: 0.9632042692 | AX188: 1.013182247 | BD188: 0.6534319771 | BE188: 1.078112761 | BF188: 1.09232471 | BG188: 1.07094133
AT189: 181 | AU189: 2202.014552 | AV189: 1.193396707 | AX189: 0.9784179541 | BD189: 0.2349141621 | BE189: 0.8083220223 | BF189: 0.7908767793 | BG189: 0.8026445172
AT190: 182 | AU190: 1932.476578 | AV190: 1.047318775 | AX190: 0.9870033258 | BD190: 0.3429282188 | BE190: 0.8789978135 | BF190: 0.8675737653 | BG190: 0.8713604117
AT191: 183 | AU191: 1675.605215 | AV191: 0.9081055998 | AX191: 1.038742942 | BD191: 0.3296196693 | BE191: 0.8706490815 | BF191: 0.9043805882 | BG191: 0.8631951086
AT192: 184 | AU192: 1903.973506 | AV192: 1.031871343 | AX192: 0.9906476981 | BD192: 0.03005039304 | BE192: 0.5916989865 | BF192: 0.5861652389 | BG192: 0.5953943514
AT193: 185 | AU193: 1843.728724 | AV193: 0.9992212748 | AX193: 1.000072808 | BD193: 0.6942894515 | BE193: 1.108900972 | BF193: 1.10898171 | BG193: 1.102760657
AT194: 186 | AU194: 1728.609971 | AV194: 0.9368318863 | AX194: 1.024585742 | BD194: 0.4046033637 | BE194: 0.9170992193 | BF194: 0.9396467844 | BG194: 0.9088077946
AT195: 187 | AU195: 1918.628919 | AV195: 1.039813943 | AX195: 0.9887084994 | BD195: 0.202488667 | BE195: 0.7850267921 | BF195: 0.7761626616 | BG195: 0.7801765095
AT196: 188 | AU196: 2206.013443 | AV196: 1.195563933 | AX196: 0.9786429363 | BD196: 0.8068325786 | BE196: 1.210223866 | BF196: 1.184377038 | BG196: 1.209581825
AT197: 189 | AU197: 2075.807616 | AV197: 1.124998003 | AX197: 0.9766108643 | BD197: 0.831579815 | BE197: 1.237879453 | BF197: 1.208926523 | BG197: 1.239331827
AT198: 190 | AU198: 1804.939241 | AV198: 0.9781990514 | AX198: 1.007378746 | BD198: 0.776381364 | BE198: 1.179523553 | BF198: 1.188226959 | BG198: 1.176861766
AT199: 191 | AU199: 2246.544254 | AV199: 1.217529881 | AX199: 0.9815046268 | BD199: 0.3873055673 | BE199: 0.906477538 | BF199: 0.8897118977 | BG199: 0.8983372533
AT200: 192 | AU200: 1249.110712 | AV200: 0.6769640144 | AX200: 1.218532618 | BD200: 0.121954552 | BE200: 0.7181158578 | BF200: 0.8750475959 | BG200: 0.7160164028
AT201: 193 | AU201: 1694.044602 | AV201: 0.9180989504 | AX201: 1.033612599 | BD201: 0.6273697515 | BE201: =_xlfn.BETA.INV(BD201,$BA$11,$BA$12,$BA$9,$BA$10) -> 1.059504851 | BF201: =AX201*BE201 -> 1.095117563 | BG201: =_xlfn.LOGNORM.INV(BD201,$H$15,$H$14) -> 1.051846339
AT202: 194 | AU202: 1715.910063 | AV202: =AU202/$AU$4 -> 0.9299490851 | AX202: =$AF$11+$AF$10*AV202+$AF$9*AV202^2 -> 1.027812913 | BD202: 0.2178172496 | BE202: 0.7962157118 | BF202: 0.8183607901 | BG202: 0.790958233
AT203: 195 | AU203: 2044.394101 | AV203: 1.107973235 | AX203: 0.9777560493 | BD203: 0.6554440137 | BE203: 1.079579628 | BF203: 1.055565512 | BG203: 1.0724509
... 805 more rows

Sheet Sheet1
E2: Beta Params
E3: a | F3: b | G3: c | H3: d
D4: minY | E4: 0.196191876 | F4: 0.2384966878 | G4: 0.2244761483 | H4: 0.2239594886
D5: maxY | E5: 9.910825263 | F5: 6.022804255 | G5: 7.295569972 | H5: 7.917786228
D6: alpha | E6: 9.263062586 | F6: 7.7293851 | G6: 8.297233066 | H6: 8.492077595
D7: beta | E7: 102.6881036 | F7: 50.98229814 | G7: 67.35555138 | H7: 75.7001727
D8: E[Impact] | E8: 1.000000002 | F8: 0.9999999909 | G8: 0.9999996655 | H8: 0.9999997233
D9: SD[Impact] | E9: 0.2518197568 | F9: 0.2530925526 | G9: 0.2523777461 | H9: 0.2510300147
E12: LR dist
D13: LR orig | E13: a | F13: b | G13: c | H13: d
C14: 0.001 | D14: 0.435670912 | E14: 0.4343508037 | F14: 0.4375192597 | G14: 0.4375209937 | H14: 0.440397968
C15: 0.01 | D15: 0.5306163229 | E15: 0.5376460411 | F15: 0.5374763211 | G15: 0.5385868974 | H15: 0.5414420999
C16: 0.05 | D16: 0.632656131 | E16: 0.6405954779 | F16: 0.6385446757 | G16: 0.6400735033 | H16: 0.6424597812
C17: 0.1 | D17: 0.6948473566 | E17: 0.7111172708 | F17: 0.7087511864 | G17: 0.7102033988 | H17: 0.7121969202
C18: 0.2 | D18: 0.7783952624 | E18: 0.7970143078 | F18: 0.794831287 | G18: 0.7959983901 | H18: 0.7974850715
C19: 0.3 | D19: 0.8448054785 | E19: 0.8687745197 | F19: 0.8670437024 | G19: 0.867881823 | H19: 0.8689512585
C20: 0.4 | D20: 0.9060214338 | E20: 0.930120402 | F20: 0.9290519948 | G20: 0.9294046394 | H20: 0.9301127706
C21: 0.5 | D21: 0.9672429285 | E21: 0.9967548023 | F21: 0.9967800031 | G21: 0.9965906954 | H21: 0.9965870903
C22: 0.6 | D22: 1.03260127 | E22: 1.056860006 | F22: 1.057585862 | G22: 1.057016242 | H22: 1.056593875
C23: 0.7 | D23: 1.107425208 | E23: 1.137138536 | F23: 1.138132742 | G23: 1.137460788 | H23: 1.136827052
C24: 0.8 | D24: 1.201907216 | E24: 1.227877883 | F24: 1.230225477 | G24: 1.228959005 | H24: 1.227442606
C25: 0.9 | D25: 1.346423605 | E25: 1.37291731 | F25: 1.37572207 | G25: 1.374286568 | H25: 1.372332632
C26: 0.95 | D26: 1.478779446 | E26: 1.498647597 | F26: 1.501026195 | G26: 1.499984386 | H26: 1.497551755
C27: 0.99 | D27: 1.763155113 | E27: 1.742442284 | F27: 1.744673017 | G27: 1.743786758 | H27: 1.740946613
C28: 0.995 | D28: 1.880417646 | E28: 1.893540025 | F28: 1.891695214 | G28: 1.893126281 | H28: 1.890370738
C29: 0.999 | D29: 2.147398087 | E29: 2.14616716 | F29: 2.140934598 | G29: 2.144234601 | H29: 2.141501974
E32: a | F32: b | G32: c | H32: d
C33: 0.001 | E33: 0.4326977111 | F33: 0.4358541552 | G33: 0.435855868 | H33: 0.4387218966
C34: 0.01 | E34: 0.5293286293 | F34: 0.5287962661 | G34: 0.5299652803 | H34: 0.5326583075
C35: 0.05 | E35: 0.6320781618 | F35: 0.6299878811 | G35: 0.631468044 | H35: 0.6337005505
C36: 0.1 | E36: 0.696815011 | F36: 0.6945175309 | G36: 0.6958970263 | H36: 0.69775628
C37: 0.2 | E37: 0.7834878319 | F37: 0.7814998447 | G37: 0.7825316078 | H37: 0.7838371248
C38: 0.3 | E38: 0.8518384078 | F38: 0.8503963872 | G38: 0.8510545042 | H38: 0.8519026503
C39: 0.4 | E39: 0.9141647844 | F39: 0.9133523765 | G39: 0.913635909 | H39: 0.9140644812
C40: 0.5 | E40: 0.9757885246 | F40: 0.975656503 | G40: 0.9755658987 | H40: 0.975586061
C41: 0.6 | E41: 1.040268817 | F41: 1.04085398 | G41: 1.040391929 | H41: 1.039999155
C42: 0.7 | E42: 1.113217712 | F42: 1.114559585 | G42: 1.113728121 | H42: 1.112894159
C43: 0.8 | E43: 1.202920825 | F43: 1.205029242 | G43: 1.203853497 | H43: 1.202526208
C44: 0.9 | E44: 1.33446872 | F44: 1.33719711 | G44: 1.335811188 | H44: 1.333882538
C45: 0.95 | E45: 1.451358979 | F45: 1.453972043 | G45: 1.452762371 | H45: 1.450443379
C46: 0.99 | E46: 1.674110679 | F46: 1.674312953 | G46: 1.67457471 | H46: 1.671949476
C47: 0.995 | E47: 1.762757213 | F47: 1.761082109 | G47: 1.762392197 | H47: 1.759821146
C48: 0.999 | E48: 1.948219987 | F48: 1.940725302 | G48: 1.945160811 | H48: 1.943055511

Sheet Models
D4: -1 | E4: =-1+D4 -> -2 | F4: =-1+E4 -> -3 | G4: =-1+F4 -> -4 | H4: =-1+G4 -> -5
D5: Year | E5: SP0 | F5: LR0 | G5: LR0:Quad | H5: LR err: Quad
D6: =Calculations!N9 -> 1990 | E6: =Calculations!S9 -> 0.9140577212 | F6: =Calculations!T9 -> 1.034733453 | G6: =$F$39+$F$38*E6+$F$37*E6^2 -> 1.035660887 | H6: =F6/G6 -> 0.9991045003
B7: LR err Quad | D7: =Calculations!N10 -> 1991 | E7: =Calculations!S10 -> 1.067085139 | F7: =Calculations!T10 -> 0.84433009 | G7: =$F$39+$F$38*E7+$F$37*E7^2 -> 0.9831033992 | H7: =F7/G7 -> 0.8588415935
A8: SP0 | B8: =CORREL(H6:H29,E6:E29) -> -0.008132284073 | D8: =Calculations!N11 -> 1992 | E8: =Calculations!S11 -> 1.044151242 | F8: =Calculations!T11 -> 0.9173182236 | G8: 0.9877079541 | H8: 0.9287342679
A9: LR0 | B9: =CORREL(F6:F29,H6:H29) -> 0.9555142455 | D9: =Calculations!N12 -> 1993 | E9: =Calculations!S12 -> 1.00376153 | F9: =Calculations!T12 -> 0.7438162848 | G9: 0.9986222009 | H9: 0.7448425282
A10: LR0:Quad | B10: =CORREL(G6:G29,H6:H29) -> 0.02510698751 | D10: =Calculations!N13 -> 1994 | E10: =Calculations!S13 -> 0.9179056533 | F10: =Calculations!T13 -> 0.7869332165 | G10: 1.033709755 | H10: 0.7612709586
D11: =Calculations!N14 -> 1995 | E11: =Calculations!S14 -> 1.22404328 | F11: =Calculations!T14 -> 0.7692782354 | G11: 0.9825566216 | H11: 0.7829352716
D12: =Calculations!N15 -> 1996 | E12: =Calculations!S15 -> 1.124587418 | F12: =Calculations!T15 -> 0.7844753833 | G12: 0.9766310013 | H12: 0.8032464486
D13: =Calculations!N16 -> 1997 | E13: =Calculations!S16 -> 1.203076695 | F13: =Calculations!T16 -> 0.9451525171 | G13: 0.9795026018 | H13: 0.9649310939
D14: =Calculations!N17 -> 1998 | E14: =Calculations!S17 -> 1.153427929 | F14: =Calculations!T17 -> 1.301688884 | G14: 0.9761157662 | H14: 1.333539452
D15: =Calculations!N18 -> 1999 | E15: =Calculations!S18 -> 1.133069863 | F15: =Calculations!T18 -> 1.592378264 | G15: 0.9762900739 | H15: 1.631050348
D16: =Calculations!N19 -> 2000 | E16: =Calculations!S19 -> 0.8688649197 | F16: =Calculations!T19 -> 1.549064132 | G16: 1.061006992 | H16: 1.459994274
D17: =Calculations!N20 -> 2001 | E17: =Calculations!S20 -> 0.8069302761 | F17: =Calculations!T20 -> 1.423366283 | G17: 1.103019294 | H17: 1.290427368
D18: =Calculations!N21 -> 2002 | E18: =Calculations!S21 -> 0.7582536086 | F18: =Calculations!T21 -> 1.359303688 | G18: 1.141943232 | H18: 1.19034261
D19: =Calculations!N22 -> 2003 | E19: =Calculations!S22 -> 1.165322469 | F19: =Calculations!T22 -> 0.9890103797 | G19: 0.9764346592 | H19: 1.012879224
D20: =Calculations!N23 -> 2004 | E20: =Calculations!S23 -> 1.078557026 | F20: =Calculations!T23 -> 0.6885723735 | G20: 0.9812330054 | H20: 0.7017419611
D21: =Calculations!N24 -> 2005 | E21: =Calculations!S24 -> 1.00791201 | F21: =Calculations!T24 -> 0.7159294802 | G21: 0.9973356859 | H21: 0.7178420368
D22: =Calculations!N25 -> 2006 | E22: =Calculations!S25 -> 1.056602556 | F22: =Calculations!T25 -> 0.7627742763 | G22: 0.9850648943 | H22: 0.7743391128
D23: =Calculations!N26 -> 2007 | E23: =Calculations!S26 -> 0.9774376968 | F23: =Calculations!T26 -> 0.8388206343 | G23: 1.007661532 | H23: 0.8324428466
D24: =Calculations!N27 -> 2008 | E24: =Calculations!S27 -> 0.5635202402 | F24: =Calculations!T27 -> 1.12829678 | G24: 1.349645003 | H24: 0.8359952264
D25: =Calculations!N28 -> 2009 | E25: =Calculations!S28 -> 1.221134432 | F25: =Calculations!T28 -> 1.094768121 | G25: 0.9820753075 | H25: 1.114749666
D26: =Calculations!N29 -> 2010 | E26: =Calculations!S29 -> 1.090866009 | F26: =Calculations!T29 -> 1.044617171 | G26: 0.9795471609 | H26: 1.066428665
D27: =Calculations!N30 -> 2011 | E27: =Calculations!S30 -> 0.9805932309 | F27: =Calculations!T30 -> 1.043500534 | G27: 1.006497775 | H27: 1.036763875
D28: =Calculations!N31 -> 2012 | E28: =Calculations!S31 -> 1.118791335 | F28: =Calculations!T31 -> 1.068410454 | G28: 0.9769547222 | H28: 1.093613071
D29: =Calculations!N32 -> 2013 | E29: =Calculations!S32 -> 1.241721709 | F29: =Calculations!T32 -> 1.037661614 | G29: 0.9858809461 | H29: 1.052522232
D31: mean | E31: =AVERAGE(E6:E29) -> 1.030069749 | F31: =AVERAGE(F6:F29) -> 1.019341686 | G31: =AVERAGE(G6:G29) -> 1.019341686 | H31: =AVERAGE(H6:H29) -> 0.9995241095
D32: SD | E32: =_xlfn.STDEV.S(E6:E29) -> 0.1639028199 | F32: =_xlfn.STDEV.S(F6:F29) -> 0.2624496314 | G32: 0.08228113024 | H32: 0.2450278
D36: Polynomial Regression ^2
E37: b2 | F37: =TRANSPOSE(LINEST(F6:F29,E6:E29^{1,2},TRUE,FALSE)) -> 1.096721603
E38: b1 | F38: -2.51621362
E39: b0 | F39: 2.419312811

Sheet Economic Data
A1: Year | B1: S&P Composite | C1: Dividend | D1: Earnings | E1: CPI | F1: Long Interest Rate | G1: Real Price | H1: Real Dividend | I1: Real Earnings | J1: Cyclically Adjusted PE Ratio | N1: Date | O1: 1 MO | P1: 3 MO | Q1: 6 MO | R1: 1 YR | S1: 2 YR | T1: 3 YR | U1: 5 YR | V1: 7 YR | W1: 10 YR | X1: 20 YR | Y1: 30 YR | AA1: Year | AB1: x1 | AC1: x2 | AD1: x3 | AE1: x4 | AF1: y | AG1: 1yr prior | AH1: y-pred | AI1: simple growth
A2: 2017-12-31 | B2: 2659.99 | C2: 48.17 | D2: 104.02 | E2: 246.546 | F2: 2.37 | G2: 2659.99 | H2: 48.11672043 | I2: 104.6956172 | J2: 32.44155564 | K2: =B3*(1+R2/100)*1.02 -> 2331.894102 | N2: 2017-12-31 | O2: 1.19 | P2: 1.39 | Q2: 1.54 | R2: 1.76 | S2: 1.91 | T2: 2 | U2: 2.23 | V2: 2.36 | W2: 2.43 | X2: 2.6 | Y2: 2.75 | AA2: 2017 | AB2: =B3 -> 2246.63 | AC2: =C3 -> 45.7 | AD2: =R3 -> 0.85 | AE2: =E3/E4-1 -> 0.02074622133 | AF2: =B2 -> 2659.99 | AG2: =B3 -> 2246.63 | AH2: =$AK$4+SUMPRODUCT(AB2:AE2,$AL$4:$AO$4) -> 2415.220591 | AI2: =(B3+C3)*(1+R3/100) -> 2311.814805
A3: 2016-12-31 | B3: 2246.63 | C3: 45.7 | D3: 94.55 | E3: 241.432 | F3: 2.49 | G3: 2294.217999 | H3: 46.66801501 | I3: 96.55275316 | J3: 27.86509822 | K3: =B4*(1+R3/100)*1.02 -> 2112.970474 | N3: 2016-12-31 | O3: 0.44 | P3: 0.51 | Q3: 0.62 | R3: 0.85 | S3: 1.2 | T3: 1.47 | U3: 1.93 | V3: 2.25 | W3: 2.45 | X3: 2.79 | Y3: 3.06 | AA3: 2016 | AB3: =B4 -> 2054.08 | AC3: =C4 -> 43.39 | AD3: 0.65 | AE3: =E4/E5-1 -> 0.00729519786 | AF3: =B3 -> 2246.63 | AG3: =B4 -> 2054.08 | AH3: 2318.576247 | AI3: =(B4+C4)*(1+R4/100) -> 2111.103555 | AK3: 5 | AL3: 4 | AM3: 3 | AN3: 2 | AO3: 1
A4: 2015-12-31 | B4: 2054.08 | C4: 43.39 | D4: 86.53 | E4: 236.525 | F4: 2.24 | G4: 2141.106469 | H4: 45.22833079 | I4: 90.19606968 | J4: 25.96542404 | K4: 2108.97521 | N4: 2015-12-31 | O4: 0.14 | P4: 0.16 | Q4: 0.49 | R4: 0.65 | S4: 1.06 | T4: 1.31 | U4: 1.76 | V4: 2.09 | W4: 2.27 | X4: 2.67 | Y4: 3.01 | AA4: 2015 | AB4: 2054.27 | AC4: 39.44 | AD4: 0.25 | AE4: 0.007564932697 | AF4: 2054.08 | AG4: 2054.27 | AH4: 2247.503625 | AI4: 2098.944275 | AK4: =INDEX(LINEST(AF2:AF29,AB2:AE29,TRUE,FALSE),,AK3:AO3) -> 158.3778616 | AL4: 0.7204526829 | AM4: 16.55318642 | AN4: 10.42997988 | AO4: -6126.126877
A5: 2014-12-31 | B5: 2054.27 | C5: 39.44 | D5: 102.31 | E5: 234.812 | F5: 2.21 | G5: 2156.925759 | H5: 41.41089144 | I5: 107.4226243 | J5: 26.79408548 | K5: 1848.545439 | N5: 2014-12-31 | O5: 0.03 | P5: 0.04 | Q5: 0.12 | R5: 0.25 | S5: 0.67 | T5: 1.1 | U5: 1.65 | V5: 1.97 | W5: 2.17 | X5: 2.47 | Y5: 2.75 | AA5: 2014 | AB5: 1807.78 | AC5: 34.99 | AD5: 0.13 | AE5: 0.0150173562 | AF5: 2054.27 | AG5: 1807.78 | AH5: 1949.351474 | AI5: 1845.165601
A6: 2013-12-31 | B6: 1807.78 | C6: 34.99 | D6: 100.2 | E6: 233.049 | F6: 2.9 | G6: 1912.477324 | H6: 37.01644092 | I6: 106.0030689 | J6: 24.8618693 | K6: 1452.621757 | N6: 2013-12-31 | O6: 0.01 | P6: 0.07 | Q6: 0.1 | R6: 0.13 | S6: 0.38 | T6: 0.78 | U6: 1.75 | V6: 2.45 | W6: 3.04 | X6: 3.72 | Y6: 3.96 | AA6: 2013 | AB6: 1422.29 | AC6: 31.25 | AD6: 0.16 | AE6: 0.01741022369 | AF6: 1807.78 | AG6: 1422.29 | AH6: 1595.369141 | AI6: 1455.865664
A7: 2012-12-31 | B7: 1422.29 | C7: 31.25 | D7: 86.51 | E7: 229.601 | F7: 1.72 | G7: 1527.257766 | H7: 33.55631073 | I7: 92.89460612 | J7: 21.23826114 | K7: 1270.215498 | N7: 2012-12-31 | O7: 0.02 | P7: 0.05 | Q7: 0.11 | R7: 0.16 | S7: 0.25 | T7: 0.36 | U7: 0.72 | V7: 1.18 | W7: 1.78 | X7: 2.54 | Y7: 2.95 | AA7: 2012 | AB7: 1243.32 | AC7: 26.43 | AD7: 0.12 | AE7: 0.02962418845 | AF7: 1422.29 | AG7: 1243.32 | AH7: 1311.401869 | AI7: 1271.2737
A8: 2011-12-31 | B8: 1243.32 | C8: 26.43 | D8: 86.95 | E8: 225.672 | F8: 1.98 | G8: 1358.323464 | H8: 28.8746977 | I8: 94.99262071 | J8: 20.5235755 | K8: 1267.880233 | N8: 2011-12-31 | O8: 0.01 | P8: 0.02 | Q8: 0.06 | R8: 0.12 | S8: 0.25 | T8: 0.36 | U8: 0.83 | V8: 1.35 | W8: 1.89 | X8: 2.57 | Y8: 2.89 | AA8: 2011 | AB8: 1241.53 | AC8: 22.73 | AD8: 0.29 | AE8: 0.01495723527 | AF8: 1243.32 | AG8: 1241.53 | AH8: 1340.490182 | AI8: 1267.926354
A9: 2010-12-31 | B9: 1241.53 | C9: 22.73 | D9: 77.35 | E9: 219.179 | F9: 3.29 | G9: 1396.549192 | H9: 25.56809995 | I9: 87.00803042 | J9: 22.39637977 | K9: 1135.872104 | N9: 2010-12-31 | O9: 0.07 | P9: 0.12 | Q9: 0.19 | R9: 0.29 | S9: 0.61 | T9: 1.02 | U9: 2.01 | V9: 2.71 | W9: 3.3 | X9: 4.13 | Y9: 4.34 | AA9: 2010 | AB9: 1110.38 | AC9: 22.41 | AD9: 0.47 | AE9: 0.02721331126 | AF9: 1241.53 | AG9: 1110.38 | AH9: 1167.500912 | AI9: 1138.114113
A10: 2009-12-31 | B10: 1110.38 | C10: 22.41 | D10: 50.97 | E10: 215.949 | F10: 3.59 | G10: 1267.705558 | H10: 25.58518845 | I10: 58.19174722 | J10: 20.3223765 | K10: 899.3182226 | N10: 2009-12-31 | O10: 0.04 | P10: 0.06 | Q10: 0.2 | R10: 0.47 | S10: 1.14 | T10: 1.7 | U10: 2.69 | V10: 3.39 | W10: 3.85 | X10: 4.58 | Y10: 4.63 | AA10: 2009 | AB10: 877.56 | AC10: 28.39 | AD10: 0.37 | AE10: 0.0009141290065 | AF10: 1110.38 | AG10: 877.56 | AH10: 1258.822303 | AI10: 909.302015
A11: 2008-12-31 | B11: 877.56 | C11: 28.39 | D11: 14.88 | E11: 210.228 | F11: 2.42 | G11: 1029.163136 | H11: 33.2945228 | I11: 17.45059878 | J11: 15.37608075 | K11: 1514.386976 | N11: 2008-12-31 | O11: 0.11 | P11: 0.11 | Q11: 0.27 | R11: 0.37 | S11: 0.76 | T11: 1 | U11: 1.55 | V11: 1.87 | W11: 2.25 | X11: 3.05 | Y11: 2.69 | AA11: 2008 | AB11: 1479.22 | AC11: 27.73 | AD11: 3.34 | AE11: 0.04081268583 | AF11: 877.56 | AG11: 1479.22 | AH11: 1467.91818 | AI11: 1557.28213
A12: 2007-12-31 | B12: 1479.22 | C12: 27.73 | D12: 66.18 | E12: 210.036 | F12: 4.1 | G12: 1736.348884 | H12: 32.55023225 | I12: 77.68389362 | J12: 25.95551011 | K12: 1493.002997 | N12: 2007-12-31 | O12: 2.76 | P12: 3.36 | Q12: 3.49 | R12: 3.34 | S12: 3.05 | T12: 3.07 | U12: 3.45 | V12: 3.7 | W12: 4.04 | X12: 4.5 | Y12: 4.45 | AA12: 2007 | AB12: 1416.42 | AC12: 24.88 | AD12: 5 | AE12: 0.02540650407 | AF12: 1479.22 | AG12: 1416.42 | AH12: 1487.191161 | AI12: 1513.365
A13: 2006-12-31 | B13: 1416.42 | C13: 24.88 | D13: 81.51 | E13: 201.8 | F13: 4.56 | G13: 1730.489025 | H13: 30.39675164 | I13: 99.58357017 | J13: 27.28268979 | K13: 1351.67697 | N13: 2006-12-31 | O13: 4.75 | P13: 5.02 | Q13: 5.09 | R13: 5 | S13: 4.82 | T13: 4.74 | U13: 4.7 | V13: 4.7 | W13: 4.71 | X13: 4.91 | Y13: 4.81 | AA13: 2006 | AB13: 1262.07 | AC13: 22.22 | AD13: 4.38 | AE13: 0.03415659485 | AF13: 1416.42 | AG13: 1262.07 | AH13: 1271.88706 | AI13: 1340.541902
A14: 2005-12-31 | B14: 1262.07 | C14: 22.22 | D14: 69.83 | E14: 196.8 | F14: 4.47 | G14: 1581.088975 | H14: 27.83664695 | I14: 87.48123567 | J14: 26.44380311 | K14: 1276.770106 | N14: 2005-12-31 | O14: 4.01 | P14: 4.08 | Q14: 4.37 | R14: 4.38 | S14: 4.41 | T14: 4.37 | U14: 4.35 | V14: 4.36 | W14: 4.39 | X14: 4.61 | AA14: 2005 | AB14: 1199.21 | AC14: 19.44 | AD14: 2.75 | AE14: 0.03255561584 | AF14: 1262.07 | AG14: 1199.21 | AH14: 1173.388479 | AI14: 1252.162875
A15: 2004-12-31 | B15: 1199.21 | C15: 19.44 | D15: 58.55 | E15: 190.3 | F15: 4.23 | G15: 1553.654381 | H15: 25.18578161 | I15: 75.85532475 | J15: 27.14480869 | K15: 1132.564752 | N15: 2004-12-31 | O15: 1.89 | P15: 2.22 | Q15: 2.59 | R15: 2.75 | S15: 3.08 | T15: 3.25 | U15: 3.63 | V15: 3.94 | W15: 4.24 | X15: 4.85 | AA15: 2004 | AB15: 1080.64 | AC15: 17.39 | AD15: 1.26 | AE15: 0.01879491432 | AF15: 1199.21 | AG15: 1080.64 | AH15: 1122.789506 | AI15: 1111.865178
A16: 2003-12-31 | B16: 1080.64 | C16: 17.39 | D16: 48.74 | E16: 184.3 | F16: 4.27 | G16: 1445.618391 | H16: 23.26334748 | I16: 65.20158459 | J16: 26.63517051 | K16: 928.7198614 | N16: 2003-12-31 | O16: 0.9 | P16: 0.95 | Q16: 1.02 | R16: 1.26 | S16: 1.84 | T16: 2.37 | U16: 3.25 | V16: 3.77 | W16: 4.27 | X16: 5.1 | AA16: 2003 | AB16: 899.18 | AC16: 16.07 | AD16: 1.32 | AE16: 0.02376910017 | AF16: 1080.64 | AG16: 899.18 | AH16: 940.3592609 | AI16: 927.3313
A17: 2002-12-31 | B17: 899.18 | C17: 16.07 | D17: 27.59 | E17: 180.9 | F17: 4.03 | G17: 1225.479449 | H17: 21.90157114 | I17: 37.60201294 | J17: 23.10144254 | K17: 1183.243938 | N17: 2002-12-31 | O17: 1.2 | P17: 1.22 | Q17: 1.23 | R17: 1.32 | S17: 1.61 | T17: 1.99 | U17: 2.78 | V17: 3.36 | W17: 3.83 | X17: 4.83 | Y17: 5.37 | AA17: 2002 | AB17: 1144.93 | AC17: 15.74 | AD17: 2.17 | AE17: 0.01551724138 | AF17: 899.18 | AG17: 1144.93 | AH17: 1171.365373 | AI17: 1185.856539
A18: 2001-12-31 | B18: 1144.93 | C18: 15.74 | D18: 24.69 | E18: 176.7 | F18: 5.09 | G18: 1597.498086 | H18: 21.96170934 | I18: 34.44946655 | J18: 30.49995326 | K18: 1387.007405 | N18: 2001-12-31 | O18: 1.68 | P18: 1.74 | Q18: 1.83 | R18: 2.17 | S18: 3.07 | T18: 3.59 | U18: 4.38 | V18: 4.84 | W18: 5.07 | X18: 5.74 | Y18: 5.48 | AA18: 2001 | AB18: 1330.93 | AC18: 16.27 | AD18: 5.32 | AE18: 0.03386809269 | AF18: 1144.93 | AG18: 1330.93 | AH18: 1234.577554 | AI18: 1418.87104
A19: 2000-12-31 | B19: 1330.93 | C19: 16.27 | D19: 50 | E19: 174 | F19: 5.24 | G19: 1885.836022 | H19: 23.05346793 | I19: 70.84655172 | J19: 37.274238 | K19: 1534.779492 | N19: 2000-12-31 | P19: 5.89 | Q19: 5.7 | R19: 5.32 | S19: 5.11 | T19: 5.06 | U19: 4.99 | V19: 5.16 | W19: 5.12 | X19: 5.59 | Y19: 5.46 | AA19: 2000 | AB19: 1428.68 | AC19: 16.69 | AD19: 5.98 | AE19: 0.02684563758 | AF19: 1330.93 | AG19: 1428.68 | AH19: 1361.85838 | AI19: 1531.803126
A20: 1999-12-31 | B20: 1428.68 | C20: 16.69 | D20: 48.17 | E20: 168.3 | F20: 6.28 | G20: 2092.9016 | H20: 24.44951123 | I20: 70.5651861 | J20: 44.19793976 | K20: 1286.43929 | N20: 1999-12-31 | P20: 5.33 | Q20: 5.74 | R20: 5.98 | S20: 6.24 | T20: 6.29 | U20: 6.36 | V20: 6.55 | W20: 6.45 | X20: 6.83 | Y20: 6.48 | AA20: 1999 | AB20: 1190.05 | AC20: 16.2 | AD20: 4.53 | AE20: 0.01611903286 | AF20: 1428.68 | AG20: 1190.05 | AH20: 1232.414765 | AI20: 1260.893125
A21: 1998-12-31 | B21: 1190.05 | C21: 16.2 | D21: 37.71 | E21: 163.9 | F21: 4.65 | G21: 1790.128538 | H21: 24.36879317 | I21: 56.7251352 | J21: 38.82027478 | K21: 1026.084668 | N21: 1998-12-31 | P21: 4.48 | Q21: 4.55 | R21: 4.53 | S21: 4.54 | T21: 4.55 | U21: 4.56 | V21: 4.73 | W21: 4.65 | X21: 5.39 | Y21: 5.09 | AA21: 1998 | AB21: 962.37 | AC21: 15.5 | AD21: 5.51 | AE21: 0.01702395965 | AF21: 1190.05 | AG21: 962.37 | AH21: 1061.472552 | AI21: 1031.750637
A22: 1997-12-31 | B22: 962.37 | C22: 15.5 | D22: 39.72 | E22: 161.3 | F22: 5.81 | G22: 1470.97628 | H22: 23.6916491 | I22: 60.71176144 | J22: 33.03078904 | K22: 799.8871365 | N22: 1997-12-31 | P22: 5.36 | Q22: 5.45 | R22: 5.51 | S22: 5.66 | T22: 5.68 | U22: 5.71 | V22: 5.77 | W22: 5.75 | X22: 6.02 | Y22: 5.93 | AA22: 1997 | AB22: 743.25 | AC22: 14.9 | AD22: 5.51 | AE22: 0.0332247557 | AF22: 962.37 | AG22: 743.25 | AH22: 794.4269162 | AI22: 799.924065
A23: 1996-12-31 | B23: 743.25 | C23: 14.9 | D23: 38.73 | E23: 158.6 | F23: 6.3 | G23: 1155.392904 | H23: 23.16226608 | I23: 60.20634666 | J23: 27.72394616 | K23: 661.4014631 | N23: 1996-12-31 | P23: 5.21 | Q23: 5.33 | R23: 5.51 | S23: 5.88 | T23: 6.04 | U23: 6.21 | V23: 6.34 | W23: 6.43 | X23: 6.73 | Y23: 6.65 | AA23: 1996 | AB23: 614.57 | AC23: 13.79 | AD23: 5.18 | AE23: 0.02538410154 | AF23: 743.25 | AG23: 614.57 | AH23: 727.9359768 | AI23: 660.909048
A24: 1995-12-31 | B24: 614.57 | C24: 13.79 | D24: 33.96 | E24: 153.5 | F24: 5.71 | G24: 987.0995128 | H24: 22.14898593 | I24: 54.54529094 | J24: 25.02738066 | K24: 488.3442188 | N24: 1995-12-31 | P24: 5.1 | Q24: 5.17 | R24: 5.18 | S24: 5.18 | T24: 5.25 | U24: 5.38 | V24: 5.49 | W24: 5.58 | X24: 6.01 | Y24: 5.96 | AA24: 1995 | AB24: 455.19 | AC24: 13.17 | AD24: 7.2 | AE24: 0.02674897119 | AF24: 614.57 | AG24: 455.19 | AH24: 615.5544473 | AI24: 502.08192
A25: 1994-12-31 | B25: 455.19 | C25: 13.17 | D25: 30.6 | E25: 149.7 | F25: 7.81 | G25: 749.6678273 | H25: 21.69011904 | I25: 50.39617635 | J25: 19.91148411 | K25: 509.488368 | N25: 1994-12-31 | P25: 5.68 | Q25: 6.51 | R25: 7.2 | S25: 7.69 | T25: 7.8 | U25: 7.83 | V25: 7.84 | W25: 7.84 | X25: 8.02 | Y25: 7.89 | AA25: 1994 | AB25: 465.95 | AC25: 12.58 | AD25: 3.63 | AE25: 0.02748414376 | AF25: 455.19 | AG25: 465.95 | AH25: 571.8013496 | AI25: 495.900639
A26: 1993-12-31 | B26: 465.95 | C26: 12.58 | D26: 21.89 | E26: 145.8 | F26: 5.77 | G26: 787.9156975 | H26: 21.27262469 | I26: 37.01571975 | J26: 21.16473208 | K26: 460.4828066 | N26: 1993-12-31 | P26: 3.07 | Q26: 3.3 | R26: 3.63 | S26: 4.25 | T26: 4.58 | U26: 5.21 | V26: 5.53 | W26: 5.83 | X26: 6.48 | Y26: 6.35 | AA26: 1993 | AB26: 435.64 | AC26: 12.39 | AD26: 3.61 | AE26: 0.02900652647 | AF26: 465.95 | AG26: 435.64 | AH26: 537.2844142 | AI26: 464.203883
A27: 1992-12-31 | B27: 435.64 | C27: 12.39 | D27: 19.09 | E27: 141.9 | F27: 6.77 | G27: 756.9083822 | H27: 21.5271666 | I27: 33.16816871 | J27: 20.44860672 | K27: 410.5859152 | N27: 1992-12-31 | P27: 3.15 | Q27: 3.38 | R27: 3.61 | S27: 4.56 | T27: 5.12 | U27: 6.04 | V27: 6.43 | W27: 6.7 | Y27: 7.4 | AA27: 1992 | AB27: 388.51 | AC27: 12.2 | AD27: 4.12 | AE27: 0.03064275037 | AF27: 435.64 | AG27: 388.51 | AH27: 495.4799483 | AI27: 417.219252
A28: 1991-12-31 | B28: 388.51 | C28: 12.2 | D28: 15.97 | E28: 137.9 | F28: 7.09 | G28: 694.6017872 | H28: 21.81190138 | I28: 28.55213648 | J28: 18.44165231 | K28: 349.14039 | N28: 1991-12-31 | P28: 3.96 | Q28: 4 | R28: 4.12 | S28: 4.77 | T28: 5.11 | U28: 5.93 | V28: 6.38 | W28: 6.71 | Y28: 7.41 | AA28: 1991 | AB28: 328.75 | AC28: 12.09 | AD28: 6.82 | AE28: 0.06106264869 | AF28: 388.51 | AG28: 328.75 | AH28: 292.4096344 | AI28: 364.085288
A29: 1990-12-31 | B29: 328.75 | C29: 12.09 | D29: 21.34 | E29: 133.8 | F29: 8.08 | G29: 605.769787 | H29: 22.277587 | I29: 39.32206009 | J29: 15.84631497 | K29: 379.8220104 | N29: 1990-12-31 | P29: 6.63 | Q29: 6.73 | R29: 6.82 | S29: 7.15 | T29: 7.4 | U29: 7.68 | V29: 8 | W29: 8.08 | Y29: 8.26 | AA29: 1990 | AB29: 348.6 | AC29: 11.06 | AD29: =AD28 -> 6.82 | AE29: 0.04647302905 | AF29: 328.75 | AG29: 348.6 | AH29: 379.0386992 | AI29: 359.66
A30: 1989-12-31 | B30: 348.6 | C30: 11.06 | D30: 22.87 | E30: 126.1 | F30: 7.84 | G30: 681.5696717 | H30: 21.62409802 | I30: 44.71456796 | J30: 17.6502129 | K30: 282.03
A31: 1988-12-31 | B31: 276.5 | C31: 9.75 | D31: 23.75 | E31: 120.5 | F31: 9.11 | G31: 565.7258838 | H31: 19.94874274 | I31: 48.59309129 | J31: 14.70208675 | K31: 245.82 | AG31: =SUM((AG2:AG29-$AF$2:$AF$29)^2) -> 1271962.979 | AH31: =SUM((AH2:AH29-$AF$2:$AF$29)^2) -> 811342.7749 | AI31: =SUM((AI2:AI29-$AF$2:$AF$29)^2) -> 1184051.775
A32: 1987-12-31 | B32: 241 | C32: 8.81 | D32: 17.5 | E32: 115.4 | F32: 8.99 | G32: 514.8837608 | H32: 18.82209931 | I32: 37.38782496 | J32: 13.38902851 | K32: 253.572
A33: 1986-12-31 | B33: 248.6 | C33: 8.28 | D33: 14.48 | E33: 110.5 | F33: 7.11 | G33: 554.6727204 | H33: 18.47421611 | I33: 32.30756633 | J33: 14.08513981 | K33: 211.446
A34: 1985-12-31 | B34: 207.3 | C34: 7.9 | D34: 14.61 | E34: 109.3 | F34: 9.26 | G34: 467.6027978 | H34: 17.81988472 | I34: 32.95550833 | J34: 11.69052147 | K34: 167.79
A35: 1984-12-31 | B35: 164.5 | C35: 7.53 | D35: 16.64 | E35: 105.3 | F35: 11.5 | G35: 385.1549573 | H35: 17.63049744 | I35: 38.96035556 | J35: 9.595054801 | K35: 0
